{"text_format":"1","workbook":"xlsx","n_sheets":4,"sheets":["כנסת ה-20","כנסת ה-21","כנסת ה-22","כנסת ה-23"],"not_rendered":{"charts":0,"images":0,"macros":1,"external_links":0,"defined_names":16,"comments":0,"pivot_tables":0},"unopened":[],"bounds":{"document_bytes":16777216,"sheet_cells":100000,"rows_first":2000,"rows_last":500,"rows_between":2000,"halvings":0,"cell_chars":16384,"cell_head_chars":4096},"cells_cut":0,"cells_raw":0,"read":"whole","date_system":"1900"}

{"sheet":"כנסת ה-20","index":0,"n_rows":25,"n_cols":12,"rows_kept":25,"cut":false,"hidden":false,"merged":[[7,10,7,11],[16,10,16,11],[0,1,0,8]]}
[null,"הכנסת ה-20 |  תשע\"ה | /2015"]
[null,null,null,null,null,null,null,null,{"$f":"IF(NOT(SUM(קולות58[מנדטים הסכם עודפים])=120),\"נדרש הטלת מטבע\",\"\")","v":""}]
[null,"מפלגה","קולות","אחוז","קולות כשרים","מנדטים בסיסי","קולות עודפים","מנדטים באדר עופר","מנדטים הסכם עודפים",null,"סך הקולות","סך הקולות הכשרים"]
[null,"יהדות התורה",210143,{"$f":"IF(ISBLANK(קולות58[[#This Row],[קולות]]),,(קולות58[[#This Row],[קולות]]/סך_הקולות))","v":4.8449126722375987E-2},{"$f":"IF(קולות58[[#This Row],[אחוז]]>=אחוז_החסימה,קולות58[[#This Row],[קולות]],)","v":210143},{"$f":"IF(ISBLANK(קולות58[[#This Row],[קולות]]),,INT(קולות58[[#This Row],[קולות כשרים]]/מדד_למנדט))","v":5},{"$f":"IF(ISBLANK(קולות58[[#This Row],[קולות]]),,MOD(קולות58[[#This Row],[קולות כשרים]],מדד_למנדט))","v":34633.125000000007},{"$f":"IF(ISBLANK(קולות58[[#This Row],[קולות]]),,BaderOfer(קולות58[מפלגה],קולות58[קולות כשרים],קולות58[מנדטים בסיסי],(120- SUM(קולות58[מנדטים בסיסי])),MATCH(קולות58[[#This Row],[מפלגה]],קולות58[מפלגה],0)))","v":6},{"$f":"IF(ISBLANK(קולות58[[#This Row],[קולות]]),,BaderOfer_Odafim(קולות58[מפלגה],קולות58[קולות כשרים],קולות58[מנדטים בסיסי],הסכמי_עודפים69[[#All],[עמודה1]],הסכמי_עודפים69[[#All],[עמודה2]],(120- SUM(קולות58[מנדטים בסיסי])),MATCH(קולות58[[#This Row],[מפלגה]],קולות58[מפלגה],0)))","v":6},null,{"$f":"SUM(קולות58[קולות])","v":4337395},{"$f":"SUM(קולות58[קולות כשרים])","v":4212237}]
[null,"הליכוד",985408,{"$f":"IF(ISBLANK(קולות58[[#This Row],[קולות]]),,(קולות58[[#This Row],[קולות]]/סך_הקולות))","v":0.22718890025003488},{"$f":"IF(קולות58[[#This Row],[אחוז]]>=אחוז_החסימה,קולות58[[#This Row],[קולות]],)","v":985408},{"$f":"IF(ISBLANK(קולות58[[#This Row],[קולות]]),,INT(קולות58[[#This Row],[קולות כשרים]]/מדד_למנדט))","v":28},{"$f":"IF(ISBLANK(קולות58[[#This Row],[קולות]]),,MOD(קולות58[[#This Row],[קולות כשרים]],מדד_למנדט))","v":2552.7000000000407},{"$f":"IF(ISBLANK(קולות58[[#This Row],[קולות]]),,BaderOfer(קולות58[מפלגה],קולות58[קולות כשרים],קולות58[מנדטים בסיסי],(120- SUM(קולות58[מנדטים בסיסי])),MATCH(קולות58[[#This Row],[מפלגה]],קולות58[מפלגה],0)))","v":29},{"$f":"IF(ISBLANK(קולות58[[#This Row],[קולות]]),,BaderOfer_Odafim(קולות58[מפלגה],קולות58[קולות כשרים],קולות58[מנדטים בסיסי],הסכמי_עודפים69[[#All],[עמודה1]],הסכמי_עודפים69[[#All],[עמודה2]],(120- SUM(קולות58[מנדטים בסיסי])),MATCH(קולות58[[#This Row],[מפלגה]],קולות58[מפלגה],0)))","v":29},null,"אחוז החסימה","מדד למנדט"]
[null,"המחנה הציוני",786313,{"$f":"IF(ISBLANK(קולות58[[#This Row],[קולות]]),,(קולות58[[#This Row],[קולות]]/סך_הקולות))","v":0.18128692452497408},{"$f":"IF(קולות58[[#This Row],[אחוז]]>=אחוז_החסימה,קולות58[[#This Row],[קולות]],)","v":786313},{"$f":"IF(ISBLANK(קולות58[[#This Row],[קולות]]),,INT(קולות58[[#This Row],[קולות כשרים]]/מדד_למנדט))","v":22},{"$f":"IF(ISBLANK(קולות58[[#This Row],[קולות]]),,MOD(קולות58[[#This Row],[קולות כשרים]],מדד_למנדט))","v":14069.550000000032},{"$f":"IF(ISBLANK(קולות58[[#This Row],[קולות]]),,BaderOfer(קולות58[מפלגה],קולות58[קולות כשרים],קולות58[מנדטים בסיסי],(120- SUM(קולות58[מנדטים בסיסי])),MATCH(קולות58[[#This Row],[מפלגה]],קולות58[מפלגה],0)))","v":23},{"$f":"IF(ISBLANK(קולות58[[#This Row],[קולות]]),,BaderOfer_Odafim(קולות58[מפלגה],קולות58[קולות כשרים],קולות58[מנדטים בסיסי],הסכמי_עודפים69[[#All],[עמודה1]],הסכמי_עודפים69[[#All],[עמודה2]],(120- SUM(קולות58[מנדטים בסיסי])),MATCH(קולות58[[#This Row],[מפלגה]],קולות58[מפלגה],0)))","v":23},null,3.2500000000000001E-2,{"$f":"סך_קולות_כשרים/120","v":35101.974999999999}]
[null,"ש\"ס",241613,{"$f":"IF(ISBLANK(קולות58[[#This Row],[קולות]]),,(קולות58[[#This Row],[קולות]]/סך_הקולות))","v":5.5704633772114369E-2},{"$f":"IF(קולות58[[#This Row],[אחוז]]>=אחוז_החסימה,קולות58[[#This Row],[קולות]],)","v":241613},{"$f":"IF(ISBLANK(קולות58[[#This Row],[קולות]]),,INT(קולות58[[#This Row],[קולות כשרים]]/מדד_למנדט))","v":6},{"$f":"IF(ISBLANK(קולות58[[#This Row],[קולות]]),,MOD(קולות58[[#This Row],[קולות כשרים]],מדד_למנדט))","v":31001.150000000009},{"$f":"IF(ISBLANK(קולות58[[#This Row],[קולות]]),,BaderOfer(קולות58[מפלגה],קולות58[קולות כשרים],קולות58[מנדטים בסיסי],(120- SUM(קולות58[מנדטים בסיסי])),MATCH(קולות58[[#This Row],[מפלגה]],קולות58[מפלגה],0)))","v":7},{"$f":"IF(ISBLANK(קולות58[[#This Row],[קולות]]),,BaderOfer_Odafim(קולות58[מפלגה],קולות58[קולות כשרים],קולות58[מנדטים בסיסי],הסכמי_עודפים69[[#All],[עמודה1]],הסכמי_עודפים69[[#All],[עמודה2]],(120- SUM(קולות58[מנדטים בסיסי])),MATCH(קולות58[[#This Row],[מפלגה]],קולות58[מפלגה],0)))","v":7}]
[null,"יש עתיד",371602,{"$f":"IF(ISBLANK(קולות58[[#This Row],[קולות]]),,(קולות58[[#This Row],[קולות]]/סך_הקולות))","v":8.567400478858854E-2},{"$f":"IF(קולות58[[#This Row],[אחוז]]>=אחוז_החסימה,קולות58[[#This Row],[קולות]],)","v":371602},{"$f":"IF(ISBLANK(קולות58[[#This Row],[קולות]]),,INT(קולות58[[#This Row],[קולות כשרים]]/מדד_למנדט))","v":10},{"$f":"IF(ISBLANK(קולות58[[#This Row],[קולות]]),,MOD(קולות58[[#This Row],[קולות כשרים]],מדד_למנדט))","v":20582.250000000015},{"$f":"IF(ISBLANK(קולות58[[#This Row],[קולות]]),,BaderOfer(קולות58[מפלגה],קולות58[קולות כשרים],קולות58[מנדטים בסיסי],(120- SUM(קולות58[מנדטים בסיסי])),MATCH(קולות58[[#This Row],[מפלגה]],קולות58[מפלגה],0)))","v":10},{"$f":"IF(ISBLANK(קולות58[[#This Row],[קולות]]),,BaderOfer_Odafim(קולות58[מפלגה],קולות58[קולות כשרים],קולות58[מנדטים בסיסי],הסכמי_עודפים69[[#All],[עמודה1]],הסכמי_עודפים69[[#All],[עמודה2]],(120- SUM(קולות58[מנדטים בסיסי])),MATCH(קולות58[[#This Row],[מפלגה]],קולות58[מפלגה],0)))","v":10},null,"הסכמי עודפים"]
[null,"ישראל ביתנו",214906,{"$f":"IF(ISBLANK(קולות58[[#This Row],[קולות]]),,(קולות58[[#This Row],[קולות]]/סך_הקולות))","v":4.9547251287927432E-2},{"$f":"IF(קולות58[[#This Row],[אחוז]]>=אחוז_החסימה,קולות58[[#This Row],[קולות]],)","v":214906},{"$f":"IF(ISBLANK(קולות58[[#This Row],[קולות]]),,INT(קולות58[[#This Row],[קולות כשרים]]/מדד_למנדט))","v":6},{"$f":"IF(ISBLANK(קולות58[[#This Row],[קולות]]),,MOD(קולות58[[#This Row],[קולות כשרים]],מדד_למנדט))","v":4294.1500000000087},{"$f":"IF(ISBLANK(קולות58[[#This Row],[קולות]]),,BaderOfer(קולות58[מפלגה],קולות58[קולות כשרים],קולות58[מנדטים בסיסי],(120- SUM(קולות58[מנדטים בסיסי])),MATCH(קולות58[[#This Row],[מפלגה]],קולות58[מפלגה],0)))","v":6},{"$f":"IF(ISBLANK(קולות58[[#This Row],[קולות]]),,BaderOfer_Odafim(קולות58[מפלגה],קולות58[קולות כשרים],קולות58[מנדטים בסיסי],הסכמי_עודפים69[[#All],[עמודה1]],הסכמי_עודפים69[[#All],[עמודה2]],(120- SUM(קולות58[מנדטים בסיסי])),MATCH(קולות58[[#This Row],[מפלגה]],קולות58[מפלגה],0)))","v":6},null,"יהדות התורה","ש\"ס"]
[null,"מרצ",165529,{"$f":"IF(ISBLANK(קולות58[[#This Row],[קולות]]),,(קולות58[[#This Row],[קולות]]/סך_הקולות))","v":3.8163229311602931E-2},{"$f":"IF(קולות58[[#This Row],[אחוז]]>=אחוז_החסימה,קולות58[[#This Row],[קולות]],)","v":165529},{"$f":"IF(ISBLANK(קולות58[[#This Row],[קולות]]),,INT(קולות58[[#This Row],[קולות כשרים]]/מדד_למנדט))","v":4},{"$f":"IF(ISBLANK(קולות58[[#This Row],[קולות]]),,MOD(קולות58[[#This Row],[קולות כשרים]],מדד_למנדט))","v":25121.100000000006},{"$f":"IF(ISBLANK(קולות58[[#This Row],[קולות]]),,BaderOfer(קולות58[מפלגה],קולות58[קולות כשרים],קולות58[מנדטים בסיסי],(120- SUM(קולות58[מנדטים בסיסי])),MATCH(קולות58[[#This Row],[מפלגה]],קולות58[מפלגה],0)))","v":4},{"$f":"IF(ISBLANK(קולות58[[#This Row],[קולות]]),,BaderOfer_Odafim(קולות58[מפלגה],קולות58[קולות כשרים],קולות58[מנדטים בסיסי],הסכמי_עודפים69[[#All],[עמודה1]],הסכמי_עודפים69[[#All],[עמודה2]],(120- SUM(קולות58[מנדטים בסיסי])),MATCH(קולות58[[#This Row],[מפלגה]],קולות58[מפלגה],0)))","v":4},null,"כולנו","ישראל ביתנו"]
[null,"כולנו",315360,{"$f":"IF(ISBLANK(קולות58[[#This Row],[קולות]]),,(קולות58[[#This Row],[קולות]]/סך_הקולות))","v":7.2707235564203859E-2},{"$f":"IF(קולות58[[#This Row],[אחוז]]>=אחוז_החסימה,קולות58[[#This Row],[קולות]],)","v":315360},{"$f":"IF(ISBLANK(קולות58[[#This Row],[קולות]]),,INT(קולות58[[#This Row],[קולות כשרים]]/מדד_למנדט))","v":8},{"$f":"IF(ISBLANK(קולות58[[#This Row],[קולות]]),,MOD(קולות58[[#This Row],[קולות כשרים]],מדד_למנדט))","v":34544.200000000012},{"$f":"IF(ISBLANK(קולות58[[#This Row],[קולות]]),,BaderOfer(קולות58[מפלגה],קולות58[קולות כשרים],קולות58[מנדטים בסיסי],(120- SUM(קולות58[מנדטים בסיסי])),MATCH(קולות58[[#This Row],[מפלגה]],קולות58[מפלגה],0)))","v":9},{"$f":"IF(ISBLANK(קולות58[[#This Row],[קולות]]),,BaderOfer_Odafim(קולות58[מפלגה],קולות58[קולות כשרים],קולות58[מנדטים בסיסי],הסכמי_עודפים69[[#All],[עמודה1]],הסכמי_עודפים69[[#All],[עמודה2]],(120- SUM(קולות58[מנדטים בסיסי])),MATCH(קולות58[[#This Row],[מפלגה]],קולות58[מפלגה],0)))","v":9},null,"הליכוד","הבית היהודי"]
[null,"הבית היהודי",283910,{"$f":"IF(ISBLANK(קולות58[[#This Row],[קולות]]),,(קולות58[[#This Row],[קולות]]/סך_הקולות))","v":6.5456339577096387E-2},{"$f":"IF(קולות58[[#This Row],[אחוז]]>=אחוז_החסימה,קולות58[[#This Row],[קולות]],)","v":283910},{"$f":"IF(ISBLANK(קולות58[[#This Row],[קולות]]),,INT(קולות58[[#This Row],[קולות כשרים]]/מדד_למנדט))","v":8},{"$f":"IF(ISBLANK(קולות58[[#This Row],[קולות]]),,MOD(קולות58[[#This Row],[קולות כשרים]],מדד_למנדט))","v":3094.2000000000116},{"$f":"IF(ISBLANK(קולות58[[#This Row],[קולות]]),,BaderOfer(קולות58[מפלגה],קולות58[קולות כשרים],קולות58[מנדטים בסיסי],(120- SUM(קולות58[מנדטים בסיסי])),MATCH(קולות58[[#This Row],[מפלגה]],קולות58[מפלגה],0)))","v":8},{"$f":"IF(ISBLANK(קולות58[[#This Row],[קולות]]),,BaderOfer_Odafim(קולות58[מפלגה],קולות58[קולות כשרים],קולות58[מנדטים בסיסי],הסכמי_עודפים69[[#All],[עמודה1]],הסכמי_עודפים69[[#All],[עמודה2]],(120- SUM(קולות58[מנדטים בסיסי])),MATCH(קולות58[[#This Row],[מפלגה]],קולות58[מפלגה],0)))","v":8},null,"המחנה הציוני","מרצ"]
[null,"העבודה",190870,{"$f":"IF(ISBLANK(קולות58[[#This Row],[קולות]]),,(קולות58[[#This Row],[קולות]]/סך_הקולות))","v":4.4005676218098651E-2},{"$f":"IF(קולות58[[#This Row],[אחוז]]>=אחוז_החסימה,קולות58[[#This Row],[קולות]],)","v":190870},{"$f":"IF(ISBLANK(קולות58[[#This Row],[קולות]]),,INT(קולות58[[#This Row],[קולות כשרים]]/מדד_למנדט))","v":5},{"$f":"IF(ISBLANK(קולות58[[#This Row],[קולות]]),,MOD(קולות58[[#This Row],[קולות כשרים]],מדד_למנדט))","v":15360.125000000007},{"$f":"IF(ISBLANK(קולות58[[#This Row],[קולות]]),,BaderOfer(קולות58[מפלגה],קולות58[קולות כשרים],קולות58[מנדטים בסיסי],(120- SUM(קולות58[מנדטים בסיסי])),MATCH(קולות58[[#This Row],[מפלגה]],קולות58[מפלגה],0)))","v":5},{"$f":"IF(ISBLANK(קולות58[[#This Row],[קולות]]),,BaderOfer_Odafim(קולות58[מפלגה],קולות58[קולות כשרים],קולות58[מנדטים בסיסי],הסכמי_עודפים69[[#All],[עמודה1]],הסכמי_עודפים69[[#All],[עמודה2]],(120- SUM(קולות58[מנדטים בסיסי])),MATCH(קולות58[[#This Row],[מפלגה]],קולות58[מפלגה],0)))","v":5}]
[null,"הרשימה המשותפת",446583,{"$f":"IF(ISBLANK(קולות58[[#This Row],[קולות]]),,(קולות58[[#This Row],[קולות]]/סך_הקולות))","v":0.10296110914500524},{"$f":"IF(קולות58[[#This Row],[אחוז]]>=אחוז_החסימה,קולות58[[#This Row],[קולות]],)","v":446583},{"$f":"IF(ISBLANK(קולות58[[#This Row],[קולות]]),,INT(קולות58[[#This Row],[קולות כשרים]]/מדד_למנדט))","v":12},{"$f":"IF(ISBLANK(קולות58[[#This Row],[קולות]]),,MOD(קולות58[[#This Row],[קולות כשרים]],מדד_למנדט))","v":25359.300000000017},{"$f":"IF(ISBLANK(קולות58[[#This Row],[קולות]]),,BaderOfer(קולות58[מפלגה],קולות58[קולות כשרים],קולות58[מנדטים בסיסי],(120- SUM(קולות58[מנדטים בסיסי])),MATCH(קולות58[[#This Row],[מפלגה]],קולות58[מפלגה],0)))","v":13},{"$f":"IF(ISBLANK(קולות58[[#This Row],[קולות]]),,BaderOfer_Odafim(קולות58[מפלגה],קולות58[קולות כשרים],קולות58[מנדטים בסיסי],הסכמי_עודפים69[[#All],[עמודה1]],הסכמי_עודפים69[[#All],[עמודה2]],(120- SUM(קולות58[מנדטים בסיסי])),MATCH(קולות58[[#This Row],[מפלגה]],קולות58[מפלגה],0)))","v":13}]
[null,"יחד",125158,{"$f":"IF(ISBLANK(קולות58[[#This Row],[קולות]]),,(קולות58[[#This Row],[קולות]]/סך_הקולות))","v":2.8855568837977633E-2},{"$f":"IF(קולות58[[#This Row],[אחוז]]>=אחוז_החסימה,קולות58[[#This Row],[קולות]],)","v":0},{"$f":"IF(ISBLANK(קולות58[[#This Row],[קולות]]),,INT(קולות58[[#This Row],[קולות כשרים]]/מדד_למנדט))","v":0},{"$f":"IF(ISBLANK(קולות58[[#This Row],[קולות]]),,MOD(קולות58[[#This Row],[קולות כשרים]],מדד_למנדט))","v":0},{"$f":"IF(ISBLANK(קולות58[[#This Row],[קולות]]),,BaderOfer(קולות58[מפלגה],קולות58[קולות כשרים],קולות58[מנדטים בסיסי],(120- SUM(קולות58[מנדטים בסיסי])),MATCH(קולות58[[#This Row],[מפלגה]],קולות58[מפלגה],0)))","v":0},{"$f":"IF(ISBLANK(קולות58[[#This Row],[קולות]]),,BaderOfer_Odafim(קולות58[מפלגה],קולות58[קולות כשרים],קולות58[מנדטים בסיסי],הסכמי_עודפים69[[#All],[עמודה1]],הסכמי_עודפים69[[#All],[עמודה2]],(120- SUM(קולות58[מנדטים בסיסי])),MATCH(קולות58[[#This Row],[מפלגה]],קולות58[מפלגה],0)))","v":0}]
[null,null,null,{"$f":"IF(ISBLANK(קולות58[[#This Row],[קולות]]),,(קולות58[[#This Row],[קולות]]/סך_הקולות))","v":0},{"$f":"IF(קולות58[[#This Row],[אחוז]]>=אחוז_החסימה,קולות58[[#This Row],[קולות]],)","v":0},{"$f":"IF(ISBLANK(קולות58[[#This Row],[קולות]]),,INT(קולות58[[#This Row],[קולות כשרים]]/מדד_למנדט))","v":0},{"$f":"IF(ISBLANK(קולות58[[#This Row],[קולות]]),,MOD(קולות58[[#This Row],[קולות כשרים]],מדד_למנדט))","v":0},{"$f":"IF(ISBLANK(קולות58[[#This Row],[קולות]]),,BaderOfer(קולות58[מפלגה],קולות58[קולות כשרים],קולות58[מנדטים בסיסי],(120- SUM(קולות58[מנדטים בסיסי])),MATCH(קולות58[[#This Row],[מפלגה]],קולות58[מפלגה],0)))","v":0},{"$f":"IF(ISBLANK(קולות58[[#This Row],[קולות]]),,BaderOfer_Odafim(קולות58[מפלגה],קולות58[קולות כשרים],קולות58[מנדטים בסיסי],הסכמי_עודפים69[[#All],[עמודה1]],הסכמי_עודפים69[[#All],[עמודה2]],(120- SUM(קולות58[מנדטים בסיסי])),MATCH(קולות58[[#This Row],[מפלגה]],קולות58[מפלגה],0)))","v":0}]
[null,null,null,{"$f":"IF(ISBLANK(קולות58[[#This Row],[קולות]]),,(קולות58[[#This Row],[קולות]]/סך_הקולות))","v":0},{"$f":"IF(קולות58[[#This Row],[אחוז]]>=אחוז_החסימה,קולות58[[#This Row],[קולות]],)","v":0},{"$f":"IF(ISBLANK(קולות58[[#This Row],[קולות]]),,INT(קולות58[[#This Row],[קולות כשרים]]/מדד_למנדט))","v":0},{"$f":"IF(ISBLANK(קולות58[[#This Row],[קולות]]),,MOD(קולות58[[#This Row],[קולות כשרים]],מדד_למנדט))","v":0},{"$f":"IF(ISBLANK(קולות58[[#This Row],[קולות]]),,BaderOfer(קולות58[מפלגה],קולות58[קולות כשרים],קולות58[מנדטים בסיסי],(120- SUM(קולות58[מנדטים בסיסי])),MATCH(קולות58[[#This Row],[מפלגה]],קולות58[מפלגה],0)))","v":0},{"$f":"IF(ISBLANK(קולות58[[#This Row],[קולות]]),,BaderOfer_Odafim(קולות58[מפלגה],קולות58[קולות כשרים],קולות58[מנדטים בסיסי],הסכמי_עודפים69[[#All],[עמודה1]],הסכמי_עודפים69[[#All],[עמודה2]],(120- SUM(קולות58[מנדטים בסיסי])),MATCH(קולות58[[#This Row],[מפלגה]],קולות58[מפלגה],0)))","v":0},null,"גושים"]
[null,null,null,{"$f":"IF(ISBLANK(קולות58[[#This Row],[קולות]]),,(קולות58[[#This Row],[קולות]]/סך_הקולות))","v":0},{"$f":"IF(קולות58[[#This Row],[אחוז]]>=אחוז_החסימה,קולות58[[#This Row],[קולות]],)","v":0},{"$f":"IF(ISBLANK(קולות58[[#This Row],[קולות]]),,INT(קולות58[[#This Row],[קולות כשרים]]/מדד_למנדט))","v":0},{"$f":"IF(ISBLANK(קולות58[[#This Row],[קולות]]),,MOD(קולות58[[#This Row],[קולות כשרים]],מדד_למנדט))","v":0},{"$f":"IF(ISBLANK(קולות58[[#This Row],[קולות]]),,BaderOfer(קולות58[מפלגה],קולות58[קולות כשרים],קולות58[מנדטים בסיסי],(120- SUM(קולות58[מנדטים בסיסי])),MATCH(קולות58[[#This Row],[מפלגה]],קולות58[מפלגה],0)))","v":0},{"$f":"IF(ISBLANK(קולות58[[#This Row],[קולות]]),,BaderOfer_Odafim(קולות58[מפלגה],קולות58[קולות כשרים],קולות58[מנדטים בסיסי],הסכמי_עודפים69[[#All],[עמודה1]],הסכמי_עודפים69[[#All],[עמודה2]],(120- SUM(קולות58[מנדטים בסיסי])),MATCH(קולות58[[#This Row],[מפלגה]],קולות58[מפלגה],0)))","v":0},null,"ימין","שמאל"]
[null,null,null,{"$f":"IF(ISBLANK(קולות58[[#This Row],[קולות]]),,(קולות58[[#This Row],[קולות]]/סך_הקולות))","v":0},{"$f":"IF(קולות58[[#This Row],[אחוז]]>=אחוז_החסימה,קולות58[[#This Row],[קולות]],)","v":0},{"$f":"IF(ISBLANK(קולות58[[#This Row],[קולות]]),,INT(קולות58[[#This Row],[קולות כשרים]]/מדד_למנדט))","v":0},{"$f":"IF(ISBLANK(קולות58[[#This Row],[קולות]]),,MOD(קולות58[[#This Row],[קולות כשרים]],מדד_למנדט))","v":0},{"$f":"IF(ISBLANK(קולות58[[#This Row],[קולות]]),,BaderOfer(קולות58[מפלגה],קולות58[קולות כשרים],קולות58[מנדטים בסיסי],(120- SUM(קולות58[מנדטים בסיסי])),MATCH(קולות58[[#This Row],[מפלגה]],קולות58[מפלגה],0)))","v":0},{"$f":"IF(ISBLANK(קולות58[[#This Row],[קולות]]),,BaderOfer_Odafim(קולות58[מפלגה],קולות58[קולות כשרים],קולות58[מנדטים בסיסי],הסכמי_עודפים69[[#All],[עמודה1]],הסכמי_עודפים69[[#All],[עמודה2]],(120- SUM(קולות58[מנדטים בסיסי])),MATCH(קולות58[[#This Row],[מפלגה]],קולות58[מפלגה],0)))","v":0}]
[null,null,null,{"$f":"IF(ISBLANK(קולות58[[#This Row],[קולות]]),,(קולות58[[#This Row],[קולות]]/סך_הקולות))","v":0},{"$f":"IF(קולות58[[#This Row],[אחוז]]>=אחוז_החסימה,קולות58[[#This Row],[קולות]],)","v":0},{"$f":"IF(ISBLANK(קולות58[[#This Row],[קולות]]),,INT(קולות58[[#This Row],[קולות כשרים]]/מדד_למנדט))","v":0},{"$f":"IF(ISBLANK(קולות58[[#This Row],[קולות]]),,MOD(קולות58[[#This Row],[קולות כשרים]],מדד_למנדט))","v":0},{"$f":"IF(ISBLANK(קולות58[[#This Row],[קולות]]),,BaderOfer(קולות58[מפלגה],קולות58[קולות כשרים],קולות58[מנדטים בסיסי],(120- SUM(קולות58[מנדטים בסיסי])),MATCH(קולות58[[#This Row],[מפלגה]],קולות58[מפלגה],0)))","v":0},{"$f":"IF(ISBLANK(קולות58[[#This Row],[קולות]]),,BaderOfer_Odafim(קולות58[מפלגה],קולות58[קולות כשרים],קולות58[מנדטים בסיסי],הסכמי_עודפים69[[#All],[עמודה1]],הסכמי_עודפים69[[#All],[עמודה2]],(120- SUM(קולות58[מנדטים בסיסי])),MATCH(קולות58[[#This Row],[מפלגה]],קולות58[מפלגה],0)))","v":0}]
[null,null,null,{"$f":"IF(ISBLANK(קולות58[[#This Row],[קולות]]),,(קולות58[[#This Row],[קולות]]/סך_הקולות))","v":0},{"$f":"IF(קולות58[[#This Row],[אחוז]]>=אחוז_החסימה,קולות58[[#This Row],[קולות]],)","v":0},{"$f":"IF(ISBLANK(קולות58[[#This Row],[קולות]]),,INT(קולות58[[#This Row],[קולות כשרים]]/מדד_למנדט))","v":0},{"$f":"IF(ISBLANK(קולות58[[#This Row],[קולות]]),,MOD(קולות58[[#This Row],[קולות כשרים]],מדד_למנדט))","v":0},{"$f":"IF(ISBLANK(קולות58[[#This Row],[קולות]]),,BaderOfer(קולות58[מפלגה],קולות58[קולות כשרים],קולות58[מנדטים בסיסי],(120- SUM(קולות58[מנדטים בסיסי])),MATCH(קולות58[[#This Row],[מפלגה]],קולות58[מפלגה],0)))","v":0},{"$f":"IF(ISBLANK(קולות58[[#This Row],[קולות]]),,BaderOfer_Odafim(קולות58[מפלגה],קולות58[קולות כשרים],קולות58[מנדטים בסיסי],הסכמי_עודפים69[[#All],[עמודה1]],הסכמי_עודפים69[[#All],[עמודה2]],(120- SUM(קולות58[מנדטים בסיסי])),MATCH(קולות58[[#This Row],[מפלגה]],קולות58[מפלגה],0)))","v":0}]
[null,null,null,{"$f":"IF(ISBLANK(קולות58[[#This Row],[קולות]]),,(קולות58[[#This Row],[קולות]]/סך_הקולות))","v":0},{"$f":"IF(קולות58[[#This Row],[אחוז]]>=אחוז_החסימה,קולות58[[#This Row],[קולות]],)","v":0},{"$f":"IF(ISBLANK(קולות58[[#This Row],[קולות]]),,INT(קולות58[[#This Row],[קולות כשרים]]/מדד_למנדט))","v":0},{"$f":"IF(ISBLANK(קולות58[[#This Row],[קולות]]),,MOD(קולות58[[#This Row],[קולות כשרים]],מדד_למנדט))","v":0},{"$f":"IF(ISBLANK(קולות58[[#This Row],[קולות]]),,BaderOfer(קולות58[מפלגה],קולות58[קולות כשרים],קולות58[מנדטים בסיסי],(120- SUM(קולות58[מנדטים בסיסי])),MATCH(קולות58[[#This Row],[מפלגה]],קולות58[מפלגה],0)))","v":0},{"$f":"IF(ISBLANK(קולות58[[#This Row],[קולות]]),,BaderOfer_Odafim(קולות58[מפלגה],קולות58[קולות כשרים],קולות58[מנדטים בסיסי],הסכמי_עודפים69[[#All],[עמודה1]],הסכמי_עודפים69[[#All],[עמודה2]],(120- SUM(קולות58[מנדטים בסיסי])),MATCH(קולות58[[#This Row],[מפלגה]],קולות58[מפלגה],0)))","v":0}]
[null,null,null,{"$f":"IF(ISBLANK(קולות58[[#This Row],[קולות]]),,(קולות58[[#This Row],[קולות]]/סך_הקולות))","v":0},{"$f":"IF(קולות58[[#This Row],[אחוז]]>=אחוז_החסימה,קולות58[[#This Row],[קולות]],)","v":0},{"$f":"IF(ISBLANK(קולות58[[#This Row],[קולות]]),,INT(קולות58[[#This Row],[קולות כשרים]]/מדד_למנדט))","v":0},{"$f":"IF(ISBLANK(קולות58[[#This Row],[קולות]]),,MOD(קולות58[[#This Row],[קולות כשרים]],מדד_למנדט))","v":0},{"$f":"IF(ISBLANK(קולות58[[#This Row],[קולות]]),,BaderOfer(קולות58[מפלגה],קולות58[קולות כשרים],קולות58[מנדטים בסיסי],(120- SUM(קולות58[מנדטים בסיסי])),MATCH(קולות58[[#This Row],[מפלגה]],קולות58[מפלגה],0)))","v":0},{"$f":"IF(ISBLANK(קולות58[[#This Row],[קולות]]),,BaderOfer_Odafim(קולות58[מפלגה],קולות58[קולות כשרים],קולות58[מנדטים בסיסי],הסכמי_עודפים69[[#All],[עמודה1]],הסכמי_עודפים69[[#All],[עמודה2]],(120- SUM(קולות58[מנדטים בסיסי])),MATCH(קולות58[[#This Row],[מפלגה]],קולות58[מפלגה],0)))","v":0}]
[null,null,null,{"$f":"IF(ISBLANK(קולות58[[#This Row],[קולות]]),,(קולות58[[#This Row],[קולות]]/סך_הקולות))","v":0},{"$f":"IF(קולות58[[#This Row],[אחוז]]>=אחוז_החסימה,קולות58[[#This Row],[קולות]],)","v":0},{"$f":"IF(ISBLANK(קולות58[[#This Row],[קולות]]),,INT(קולות58[[#This Row],[קולות כשרים]]/מדד_למנדט))","v":0},{"$f":"IF(ISBLANK(קולות58[[#This Row],[קולות]]),,MOD(קולות58[[#This Row],[קולות כשרים]],מדד_למנדט))","v":0},{"$f":"IF(ISBLANK(קולות58[[#This Row],[קולות]]),,BaderOfer(קולות58[מפלגה],קולות58[קולות כשרים],קולות58[מנדטים בסיסי],(120- SUM(קולות58[מנדטים בסיסי])),MATCH(קולות58[[#This Row],[מפלגה]],קולות58[מפלגה],0)))","v":0},{"$f":"IF(ISBLANK(קולות58[[#This Row],[קולות]]),,BaderOfer_Odafim(קולות58[מפלגה],קולות58[קולות כשרים],קולות58[מנדטים בסיסי],הסכמי_עודפים69[[#All],[עמודה1]],הסכמי_עודפים69[[#All],[עמודה2]],(120- SUM(קולות58[מנדטים בסיסי])),MATCH(קולות58[[#This Row],[מפלגה]],קולות58[מפלגה],0)))","v":0}]
[null,null,null,{"$f":"IF(ISBLANK(קולות58[[#This Row],[קולות]]),,(קולות58[[#This Row],[קולות]]/סך_הקולות))","v":0},{"$f":"IF(קולות58[[#This Row],[אחוז]]>=אחוז_החסימה,קולות58[[#This Row],[קולות]],)","v":0},{"$f":"IF(ISBLANK(קולות58[[#This Row],[קולות]]),,INT(קולות58[[#This Row],[קולות כשרים]]/מדד_למנדט))","v":0},{"$f":"IF(ISBLANK(קולות58[[#This Row],[קולות]]),,MOD(קולות58[[#This Row],[קולות כשרים]],מדד_למנדט))","v":0},{"$f":"IF(ISBLANK(קולות58[[#This Row],[קולות]]),,BaderOfer(קולות58[מפלגה],קולות58[קולות כשרים],קולות58[מנדטים בסיסי],(120- SUM(קולות58[מנדטים בסיסי])),MATCH(קולות58[[#This Row],[מפלגה]],קולות58[מפלגה],0)))","v":0},{"$f":"IF(ISBLANK(קולות58[[#This Row],[קולות]]),,BaderOfer_Odafim(קולות58[מפלגה],קולות58[קולות כשרים],קולות58[מנדטים בסיסי],הסכמי_עודפים69[[#All],[עמודה1]],הסכמי_עודפים69[[#All],[עמודה2]],(120- SUM(קולות58[מנדטים בסיסי])),MATCH(קולות58[[#This Row],[מפלגה]],קולות58[מפלגה],0)))","v":0},null,{"$f":"Goshim(טבלה3710[ימין],קולות[מפלגה],קולות[מנדטים הסכם עודפים])","v":0},{"$f":"Goshim(טבלה3710[שמאל],קולות[מפלגה],קולות[מנדטים הסכם עודפים])","v":0}]

{"sheet":"כנסת ה-21","index":1,"n_rows":25,"n_cols":12,"rows_kept":25,"cut":false,"hidden":false,"merged":[[7,10,7,11],[16,10,16,11],[0,1,0,8]]}
[null,"הכנסת ה-21 | ד' ניסן תשע\"ט | 5/4/2019"]
[null,null,null,null,null,null,null,null,{"$f":"IF(NOT(SUM(קולות5[מנדטים הסכם עודפים])=120),\"נדרש הטלת מטבע\",\"\")","v":""}]
[null,"מפלגה","קולות","אחוז","קולות כשרים","מנדטים בסיסי","קולות עודפים","מנדטים באדר עופר","מנדטים הסכם עודפים",null,"סך הקולות","סך הקולות הכשרים"]
[null,"יהדות התורה",249049,{"$f":"IF(ISBLANK(קולות5[[#This Row],[קולות]]),,(קולות5[[#This Row],[קולות]]/סך_הקולות))","v":5.8262745567755833E-2},{"$f":"IF(קולות5[[#This Row],[אחוז]]>=אחוז_החסימה,קולות5[[#This Row],[קולות]],)","v":249049},{"$f":"IF(ISBLANK(קולות5[[#This Row],[קולות]]),,INT(קולות5[[#This Row],[קולות כשרים]]/מדד_למנדט))","v":7},{"$f":"IF(ISBLANK(קולות5[[#This Row],[קולות]]),,MOD(קולות5[[#This Row],[קולות כשרים]],מדד_למנדט))","v":19025.85000000002},{"$f":"IF(ISBLANK(קולות5[[#This Row],[קולות]]),,BaderOfer(קולות5[מפלגה],קולות5[קולות כשרים],קולות5[מנדטים בסיסי],(120- SUM(קולות5[מנדטים בסיסי])),MATCH(קולות5[[#This Row],[מפלגה]],קולות5[מפלגה],0)))","v":7},{"$f":"IF(ISBLANK(קולות5[[#This Row],[קולות]]),,BaderOfer_Odafim(קולות5[מפלגה],קולות5[קולות כשרים],קולות5[מנדטים בסיסי],הסכמי_עודפים6[[#All],[עמודה1]],הסכמי_עודפים6[[#All],[עמודה2]],(120- SUM(קולות5[מנדטים בסיסי])),MATCH(קולות5[[#This Row],[מפלגה]],קולות5[מפלגה],0)))","v":8},null,{"$f":"SUM(קולות5[קולות])","v":4274584},{"$f":"SUM(קולות5[קולות כשרים])","v":3943254}]
[null,"הליכוד",1140370,{"$f":"IF(ISBLANK(קולות5[[#This Row],[קולות]]),,(קולות5[[#This Row],[קולות]]/סך_הקולות))","v":0.26677917664034678},{"$f":"IF(קולות5[[#This Row],[אחוז]]>=אחוז_החסימה,קולות5[[#This Row],[קולות]],)","v":1140370},{"$f":"IF(ISBLANK(קולות5[[#This Row],[קולות]]),,INT(קולות5[[#This Row],[קולות כשרים]]/מדד_למנדט))","v":34},{"$f":"IF(ISBLANK(קולות5[[#This Row],[קולות]]),,MOD(קולות5[[#This Row],[קולות כשרים]],מדד_למנדט))","v":23114.700000000099},{"$f":"IF(ISBLANK(קולות5[[#This Row],[קולות]]),,BaderOfer(קולות5[מפלגה],קולות5[קולות כשרים],קולות5[מנדטים בסיסי],(120- SUM(קולות5[מנדטים בסיסי])),MATCH(קולות5[[#This Row],[מפלגה]],קולות5[מפלגה],0)))","v":36},{"$f":"IF(ISBLANK(קולות5[[#This Row],[קולות]]),,BaderOfer_Odafim(קולות5[מפלגה],קולות5[קולות כשרים],קולות5[מנדטים בסיסי],הסכמי_עודפים6[[#All],[עמודה1]],הסכמי_עודפים6[[#All],[עמודה2]],(120- SUM(קולות5[מנדטים בסיסי])),MATCH(קולות5[[#This Row],[מפלגה]],קולות5[מפלגה],0)))","v":35},null,"אחוז החסימה","מדד למנדט"]
[null,"כחול לבן",1125881,{"$f":"IF(ISBLANK(קולות5[[#This Row],[קולות]]),,(קולות5[[#This Row],[קולות]]/סך_הקולות))","v":0.26338960703544484},{"$f":"IF(קולות5[[#This Row],[אחוז]]>=אחוז_החסימה,קולות5[[#This Row],[קולות]],)","v":1125881},{"$f":"IF(ISBLANK(קולות5[[#This Row],[קולות]]),,INT(קולות5[[#This Row],[קולות כשרים]]/מדד_למנדט))","v":34},{"$f":"IF(ISBLANK(קולות5[[#This Row],[קולות]]),,MOD(קולות5[[#This Row],[קולות כשרים]],מדד_למנדט))","v":8625.700000000099},{"$f":"IF(ISBLANK(קולות5[[#This Row],[קולות]]),,BaderOfer(קולות5[מפלגה],קולות5[קולות כשרים],קולות5[מנדטים בסיסי],(120- SUM(קולות5[מנדטים בסיסי])),MATCH(קולות5[[#This Row],[מפלגה]],קולות5[מפלגה],0)))","v":35},{"$f":"IF(ISBLANK(קולות5[[#This Row],[קולות]]),,BaderOfer_Odafim(קולות5[מפלגה],קולות5[קולות כשרים],קולות5[מנדטים בסיסי],הסכמי_עודפים6[[#All],[עמודה1]],הסכמי_עודפים6[[#All],[עמודה2]],(120- SUM(קולות5[מנדטים בסיסי])),MATCH(קולות5[[#This Row],[מפלגה]],קולות5[מפלגה],0)))","v":35},null,3.2500000000000001E-2,{"$f":"סך_קולות_כשרים/120","v":32860.449999999997}]
[null,"ש\"ס",258275,{"$f":"IF(ISBLANK(קולות5[[#This Row],[קולות]]),,(קולות5[[#This Row],[קולות]]/סך_הקולות))","v":6.0421084250537598E-2},{"$f":"IF(קולות5[[#This Row],[אחוז]]>=אחוז_החסימה,קולות5[[#This Row],[קולות]],)","v":258275},{"$f":"IF(ISBLANK(קולות5[[#This Row],[קולות]]),,INT(קולות5[[#This Row],[קולות כשרים]]/מדד_למנדט))","v":7},{"$f":"IF(ISBLANK(קולות5[[#This Row],[קולות]]),,MOD(קולות5[[#This Row],[קולות כשרים]],מדד_למנדט))","v":28251.85000000002},{"$f":"IF(ISBLANK(קולות5[[#This Row],[קולות]]),,BaderOfer(קולות5[מפלגה],קולות5[קולות כשרים],קולות5[מנדטים בסיסי],(120- SUM(קולות5[מנדטים בסיסי])),MATCH(קולות5[[#This Row],[מפלגה]],קולות5[מפלגה],0)))","v":8},{"$f":"IF(ISBLANK(קולות5[[#This Row],[קולות]]),,BaderOfer_Odafim(קולות5[מפלגה],קולות5[קולות כשרים],קולות5[מנדטים בסיסי],הסכמי_עודפים6[[#All],[עמודה1]],הסכמי_עודפים6[[#All],[עמודה2]],(120- SUM(קולות5[מנדטים בסיסי])),MATCH(קולות5[[#This Row],[מפלגה]],קולות5[מפלגה],0)))","v":8}]
[null,"איחוד מפלגות הימין",159468,{"$f":"IF(ISBLANK(קולות5[[#This Row],[קולות]]),,(קולות5[[#This Row],[קולות]]/סך_הקולות))","v":3.7306086393436182E-2},{"$f":"IF(קולות5[[#This Row],[אחוז]]>=אחוז_החסימה,קולות5[[#This Row],[קולות]],)","v":159468},{"$f":"IF(ISBLANK(קולות5[[#This Row],[קולות]]),,INT(קולות5[[#This Row],[קולות כשרים]]/מדד_למנדט))","v":4},{"$f":"IF(ISBLANK(קולות5[[#This Row],[קולות]]),,MOD(קולות5[[#This Row],[קולות כשרים]],מדד_למנדט))","v":28026.200000000012},{"$f":"IF(ISBLANK(קולות5[[#This Row],[קולות]]),,BaderOfer(קולות5[מפלגה],קולות5[קולות כשרים],קולות5[מנדטים בסיסי],(120- SUM(קולות5[מנדטים בסיסי])),MATCH(קולות5[[#This Row],[מפלגה]],קולות5[מפלגה],0)))","v":5},{"$f":"IF(ISBLANK(קולות5[[#This Row],[קולות]]),,BaderOfer_Odafim(קולות5[מפלגה],קולות5[קולות כשרים],קולות5[מנדטים בסיסי],הסכמי_עודפים6[[#All],[עמודה1]],הסכמי_עודפים6[[#All],[עמודה2]],(120- SUM(קולות5[מנדטים בסיסי])),MATCH(קולות5[[#This Row],[מפלגה]],קולות5[מפלגה],0)))","v":5},null,"הסכמי עודפים"]
[null,"ישראל ביתנו",173004,{"$f":"IF(ISBLANK(קולות5[[#This Row],[קולות]]),,(קולות5[[#This Row],[קולות]]/סך_הקולות))","v":4.0472710326899648E-2},{"$f":"IF(קולות5[[#This Row],[אחוז]]>=אחוז_החסימה,קולות5[[#This Row],[קולות]],)","v":173004},{"$f":"IF(ISBLANK(קולות5[[#This Row],[קולות]]),,INT(קולות5[[#This Row],[קולות כשרים]]/מדד_למנדט))","v":5},{"$f":"IF(ISBLANK(קולות5[[#This Row],[קולות]]),,MOD(קולות5[[#This Row],[קולות כשרים]],מדד_למנדט))","v":8701.7500000000146},{"$f":"IF(ISBLANK(קולות5[[#This Row],[קולות]]),,BaderOfer(קולות5[מפלגה],קולות5[קולות כשרים],קולות5[מנדטים בסיסי],(120- SUM(קולות5[מנדטים בסיסי])),MATCH(קולות5[[#This Row],[מפלגה]],קולות5[מפלגה],0)))","v":5},{"$f":"IF(ISBLANK(קולות5[[#This Row],[קולות]]),,BaderOfer_Odafim(קולות5[מפלגה],קולות5[קולות כשרים],קולות5[מנדטים בסיסי],הסכמי_עודפים6[[#All],[עמודה1]],הסכמי_עודפים6[[#All],[עמודה2]],(120- SUM(קולות5[מנדטים בסיסי])),MATCH(קולות5[[#This Row],[מפלגה]],קולות5[מפלגה],0)))","v":5},null,"יהדות התורה","ש\"ס"]
[null,"מרצ",156473,{"$f":"IF(ISBLANK(קולות5[[#This Row],[קולות]]),,(קולות5[[#This Row],[קולות]]/סך_הקולות))","v":3.6605433417614436E-2},{"$f":"IF(קולות5[[#This Row],[אחוז]]>=אחוז_החסימה,קולות5[[#This Row],[קולות]],)","v":156473},{"$f":"IF(ISBLANK(קולות5[[#This Row],[קולות]]),,INT(קולות5[[#This Row],[קולות כשרים]]/מדד_למנדט))","v":4},{"$f":"IF(ISBLANK(קולות5[[#This Row],[קולות]]),,MOD(קולות5[[#This Row],[קולות כשרים]],מדד_למנדט))","v":25031.200000000012},{"$f":"IF(ISBLANK(קולות5[[#This Row],[קולות]]),,BaderOfer(קולות5[מפלגה],קולות5[קולות כשרים],קולות5[מנדטים בסיסי],(120- SUM(קולות5[מנדטים בסיסי])),MATCH(קולות5[[#This Row],[מפלגה]],קולות5[מפלגה],0)))","v":4},{"$f":"IF(ISBLANK(קולות5[[#This Row],[קולות]]),,BaderOfer_Odafim(קולות5[מפלגה],קולות5[קולות כשרים],קולות5[מנדטים בסיסי],הסכמי_עודפים6[[#All],[עמודה1]],הסכמי_עודפים6[[#All],[עמודה2]],(120- SUM(קולות5[מנדטים בסיסי])),MATCH(קולות5[[#This Row],[מפלגה]],קולות5[מפלגה],0)))","v":4},null,"הימין החדש","ישראל ביתנו"]
[null,"כולנו",152756,{"$f":"IF(ISBLANK(קולות5[[#This Row],[קולות]]),,(קולות5[[#This Row],[קולות]]/סך_הקולות))","v":3.5735875116736503E-2},{"$f":"IF(קולות5[[#This Row],[אחוז]]>=אחוז_החסימה,קולות5[[#This Row],[קולות]],)","v":152756},{"$f":"IF(ISBLANK(קולות5[[#This Row],[קולות]]),,INT(קולות5[[#This Row],[קולות כשרים]]/מדד_למנדט))","v":4},{"$f":"IF(ISBLANK(קולות5[[#This Row],[קולות]]),,MOD(קולות5[[#This Row],[קולות כשרים]],מדד_למנדט))","v":21314.200000000012},{"$f":"IF(ISBLANK(קולות5[[#This Row],[קולות]]),,BaderOfer(קולות5[מפלגה],קולות5[קולות כשרים],קולות5[מנדטים בסיסי],(120- SUM(קולות5[מנדטים בסיסי])),MATCH(קולות5[[#This Row],[מפלגה]],קולות5[מפלגה],0)))","v":4},{"$f":"IF(ISBLANK(קולות5[[#This Row],[קולות]]),,BaderOfer_Odafim(קולות5[מפלגה],קולות5[קולות כשרים],קולות5[מנדטים בסיסי],הסכמי_עודפים6[[#All],[עמודה1]],הסכמי_עודפים6[[#All],[עמודה2]],(120- SUM(קולות5[מנדטים בסיסי])),MATCH(קולות5[[#This Row],[מפלגה]],קולות5[מפלגה],0)))","v":4},null,"הליכוד","איחוד מפלגות הימין"]
[null,"הימין החדש",138598,{"$f":"IF(ISBLANK(קולות5[[#This Row],[קולות]]),,(קולות5[[#This Row],[קולות]]/סך_הקולות))","v":3.2423739947559808E-2},{"$f":"IF(קולות5[[#This Row],[אחוז]]>=אחוז_החסימה,קולות5[[#This Row],[קולות]],)","v":0},{"$f":"IF(ISBLANK(קולות5[[#This Row],[קולות]]),,INT(קולות5[[#This Row],[קולות כשרים]]/מדד_למנדט))","v":0},{"$f":"IF(ISBLANK(קולות5[[#This Row],[קולות]]),,MOD(קולות5[[#This Row],[קולות כשרים]],מדד_למנדט))","v":0},{"$f":"IF(ISBLANK(קולות5[[#This Row],[קולות]]),,BaderOfer(קולות5[מפלגה],קולות5[קולות כשרים],קולות5[מנדטים בסיסי],(120- SUM(קולות5[מנדטים בסיסי])),MATCH(קולות5[[#This Row],[מפלגה]],קולות5[מפלגה],0)))","v":0},{"$f":"IF(ISBLANK(קולות5[[#This Row],[קולות]]),,BaderOfer_Odafim(קולות5[מפלגה],קולות5[קולות כשרים],קולות5[מנדטים בסיסי],הסכמי_עודפים6[[#All],[עמודה1]],הסכמי_עודפים6[[#All],[עמודה2]],(120- SUM(קולות5[מנדטים בסיסי])),MATCH(קולות5[[#This Row],[מפלגה]],קולות5[מפלגה],0)))","v":0},null,"העבודה","מרצ"]
[null,"העבודה",190870,{"$f":"IF(ISBLANK(קולות5[[#This Row],[קולות]]),,(קולות5[[#This Row],[קולות]]/סך_הקולות))","v":4.465229832891341E-2},{"$f":"IF(קולות5[[#This Row],[אחוז]]>=אחוז_החסימה,קולות5[[#This Row],[קולות]],)","v":190870},{"$f":"IF(ISBLANK(קולות5[[#This Row],[קולות]]),,INT(קולות5[[#This Row],[קולות כשרים]]/מדד_למנדט))","v":5},{"$f":"IF(ISBLANK(קולות5[[#This Row],[קולות]]),,MOD(קולות5[[#This Row],[קולות כשרים]],מדד_למנדט))","v":26567.750000000015},{"$f":"IF(ISBLANK(קולות5[[#This Row],[קולות]]),,BaderOfer(קולות5[מפלגה],קולות5[קולות כשרים],קולות5[מנדטים בסיסי],(120- SUM(קולות5[מנדטים בסיסי])),MATCH(קולות5[[#This Row],[מפלגה]],קולות5[מפלגה],0)))","v":6},{"$f":"IF(ISBLANK(קולות5[[#This Row],[קולות]]),,BaderOfer_Odafim(קולות5[מפלגה],קולות5[קולות כשרים],קולות5[מנדטים בסיסי],הסכמי_עודפים6[[#All],[עמודה1]],הסכמי_עודפים6[[#All],[עמודה2]],(120- SUM(קולות5[מנדטים בסיסי])),MATCH(קולות5[[#This Row],[מפלגה]],קולות5[מפלגה],0)))","v":6},null,"איימן עודה","הרשימה הערבית"]
[null,"איימן עודה",193442,{"$f":"IF(ISBLANK(קולות5[[#This Row],[קולות]]),,(קולות5[[#This Row],[קולות]]/סך_הקולות))","v":4.525399430681442E-2},{"$f":"IF(קולות5[[#This Row],[אחוז]]>=אחוז_החסימה,קולות5[[#This Row],[קולות]],)","v":193442},{"$f":"IF(ISBLANK(קולות5[[#This Row],[קולות]]),,INT(קולות5[[#This Row],[קולות כשרים]]/מדד_למנדט))","v":5},{"$f":"IF(ISBLANK(קולות5[[#This Row],[קולות]]),,MOD(קולות5[[#This Row],[קולות כשרים]],מדד_למנדט))","v":29139.750000000015},{"$f":"IF(ISBLANK(קולות5[[#This Row],[קולות]]),,BaderOfer(קולות5[מפלגה],קולות5[קולות כשרים],קולות5[מנדטים בסיסי],(120- SUM(קולות5[מנדטים בסיסי])),MATCH(קולות5[[#This Row],[מפלגה]],קולות5[מפלגה],0)))","v":6},{"$f":"IF(ISBLANK(קולות5[[#This Row],[קולות]]),,BaderOfer_Odafim(קולות5[מפלגה],קולות5[קולות כשרים],קולות5[מנדטים בסיסי],הסכמי_עודפים6[[#All],[עמודה1]],הסכמי_עודפים6[[#All],[עמודה2]],(120- SUM(קולות5[מנדטים בסיסי])),MATCH(קולות5[[#This Row],[מפלגה]],קולות5[מפלגה],0)))","v":6}]
[null,"הרשימה הערבית",143666,{"$f":"IF(ISBLANK(קולות5[[#This Row],[קולות]]),,(קולות5[[#This Row],[קולות]]/סך_הקולות))","v":3.3609352395461173E-2},{"$f":"IF(קולות5[[#This Row],[אחוז]]>=אחוז_החסימה,קולות5[[#This Row],[קולות]],)","v":143666},{"$f":"IF(ISBLANK(קולות5[[#This Row],[קולות]]),,INT(קולות5[[#This Row],[קולות כשרים]]/מדד_למנדט))","v":4},{"$f":"IF(ISBLANK(קולות5[[#This Row],[קולות]]),,MOD(קולות5[[#This Row],[קולות כשרים]],מדד_למנדט))","v":12224.200000000012},{"$f":"IF(ISBLANK(קולות5[[#This Row],[קולות]]),,BaderOfer(קולות5[מפלגה],קולות5[קולות כשרים],קולות5[מנדטים בסיסי],(120- SUM(קולות5[מנדטים בסיסי])),MATCH(קולות5[[#This Row],[מפלגה]],קולות5[מפלגה],0)))","v":4},{"$f":"IF(ISBLANK(קולות5[[#This Row],[קולות]]),,BaderOfer_Odafim(קולות5[מפלגה],קולות5[קולות כשרים],קולות5[מנדטים בסיסי],הסכמי_עודפים6[[#All],[עמודה1]],הסכמי_עודפים6[[#All],[עמודה2]],(120- SUM(קולות5[מנדטים בסיסי])),MATCH(קולות5[[#This Row],[מפלגה]],קולות5[מפלגה],0)))","v":4}]
[null,"זהות",118031,{"$f":"IF(ISBLANK(קולות5[[#This Row],[קולות]]),,(קולות5[[#This Row],[קולות]]/סך_הקולות))","v":2.7612277592392615E-2},{"$f":"IF(קולות5[[#This Row],[אחוז]]>=אחוז_החסימה,קולות5[[#This Row],[קולות]],)","v":0},{"$f":"IF(ISBLANK(קולות5[[#This Row],[קולות]]),,INT(קולות5[[#This Row],[קולות כשרים]]/מדד_למנדט))","v":0},{"$f":"IF(ISBLANK(קולות5[[#This Row],[קולות]]),,MOD(קולות5[[#This Row],[קולות כשרים]],מדד_למנדט))","v":0},{"$f":"IF(ISBLANK(קולות5[[#This Row],[קולות]]),,BaderOfer(קולות5[מפלגה],קולות5[קולות כשרים],קולות5[מנדטים בסיסי],(120- SUM(קולות5[מנדטים בסיסי])),MATCH(קולות5[[#This Row],[מפלגה]],קולות5[מפלגה],0)))","v":0},{"$f":"IF(ISBLANK(קולות5[[#This Row],[קולות]]),,BaderOfer_Odafim(קולות5[מפלגה],קולות5[קולות כשרים],קולות5[מנדטים בסיסי],הסכמי_עודפים6[[#All],[עמודה1]],הסכמי_עודפים6[[#All],[עמודה2]],(120- SUM(קולות5[מנדטים בסיסי])),MATCH(קולות5[[#This Row],[מפלגה]],קולות5[מפלגה],0)))","v":0}]
[null,"גשר",74701,{"$f":"IF(ISBLANK(קולות5[[#This Row],[קולות]]),,(קולות5[[#This Row],[קולות]]/סך_הקולות))","v":1.7475618680086763E-2},{"$f":"IF(קולות5[[#This Row],[אחוז]]>=אחוז_החסימה,קולות5[[#This Row],[קולות]],)","v":0},{"$f":"IF(ISBLANK(קולות5[[#This Row],[קולות]]),,INT(קולות5[[#This Row],[קולות כשרים]]/מדד_למנדט))","v":0},{"$f":"IF(ISBLANK(קולות5[[#This Row],[קולות]]),,MOD(קולות5[[#This Row],[קולות כשרים]],מדד_למנדט))","v":0},{"$f":"IF(ISBLANK(קולות5[[#This Row],[קולות]]),,BaderOfer(קולות5[מפלגה],קולות5[קולות כשרים],קולות5[מנדטים בסיסי],(120- SUM(קולות5[מנדטים בסיסי])),MATCH(קולות5[[#This Row],[מפלגה]],קולות5[מפלגה],0)))","v":0},{"$f":"IF(ISBLANK(קולות5[[#This Row],[קולות]]),,BaderOfer_Odafim(קולות5[מפלגה],קולות5[קולות כשרים],קולות5[מנדטים בסיסי],הסכמי_עודפים6[[#All],[עמודה1]],הסכמי_עודפים6[[#All],[עמודה2]],(120- SUM(קולות5[מנדטים בסיסי])),MATCH(קולות5[[#This Row],[מפלגה]],קולות5[מפלגה],0)))","v":0},null,"גושים"]
[null,null,null,{"$f":"IF(ISBLANK(קולות5[[#This Row],[קולות]]),,(קולות5[[#This Row],[קולות]]/סך_הקולות))","v":0},{"$f":"IF(קולות5[[#This Row],[אחוז]]>=אחוז_החסימה,קולות5[[#This Row],[קולות]],)","v":0},{"$f":"IF(ISBLANK(קולות5[[#This Row],[קולות]]),,INT(קולות5[[#This Row],[קולות כשרים]]/מדד_למנדט))","v":0},{"$f":"IF(ISBLANK(קולות5[[#This Row],[קולות]]),,MOD(קולות5[[#This Row],[קולות כשרים]],מדד_למנדט))","v":0},{"$f":"IF(ISBLANK(קולות5[[#This Row],[קולות]]),,BaderOfer(קולות5[מפלגה],קולות5[קולות כשרים],קולות5[מנדטים בסיסי],(120- SUM(קולות5[מנדטים בסיסי])),MATCH(קולות5[[#This Row],[מפלגה]],קולות5[מפלגה],0)))","v":0},{"$f":"IF(ISBLANK(קולות5[[#This Row],[קולות]]),,BaderOfer_Odafim(קולות5[מפלגה],קולות5[קולות כשרים],קולות5[מנדטים בסיסי],הסכמי_עודפים6[[#All],[עמודה1]],הסכמי_עודפים6[[#All],[עמודה2]],(120- SUM(קולות5[מנדטים בסיסי])),MATCH(קולות5[[#This Row],[מפלגה]],קולות5[מפלגה],0)))","v":0},null,"ימין","שמאל"]
[null,null,null,{"$f":"IF(ISBLANK(קולות5[[#This Row],[קולות]]),,(קולות5[[#This Row],[קולות]]/סך_הקולות))","v":0},{"$f":"IF(קולות5[[#This Row],[אחוז]]>=אחוז_החסימה,קולות5[[#This Row],[קולות]],)","v":0},{"$f":"IF(ISBLANK(קולות5[[#This Row],[קולות]]),,INT(קולות5[[#This Row],[קולות כשרים]]/מדד_למנדט))","v":0},{"$f":"IF(ISBLANK(קולות5[[#This Row],[קולות]]),,MOD(קולות5[[#This Row],[קולות כשרים]],מדד_למנדט))","v":0},{"$f":"IF(ISBLANK(קולות5[[#This Row],[קולות]]),,BaderOfer(קולות5[מפלגה],קולות5[קולות כשרים],קולות5[מנדטים בסיסי],(120- SUM(קולות5[מנדטים בסיסי])),MATCH(קולות5[[#This Row],[מפלגה]],קולות5[מפלגה],0)))","v":0},{"$f":"IF(ISBLANK(קולות5[[#This Row],[קולות]]),,BaderOfer_Odafim(קולות5[מפלגה],קולות5[קולות כשרים],קולות5[מנדטים בסיסי],הסכמי_עודפים6[[#All],[עמודה1]],הסכמי_עודפים6[[#All],[עמודה2]],(120- SUM(קולות5[מנדטים בסיסי])),MATCH(קולות5[[#This Row],[מפלגה]],קולות5[מפלגה],0)))","v":0},null,"יהדות התורה","העבודה"]
[null,null,null,{"$f":"IF(ISBLANK(קולות5[[#This Row],[קולות]]),,(קולות5[[#This Row],[קולות]]/סך_הקולות))","v":0},{"$f":"IF(קולות5[[#This Row],[אחוז]]>=אחוז_החסימה,קולות5[[#This Row],[קולות]],)","v":0},{"$f":"IF(ISBLANK(קולות5[[#This Row],[קולות]]),,INT(קולות5[[#This Row],[קולות כשרים]]/מדד_למנדט))","v":0},{"$f":"IF(ISBLANK(קולות5[[#This Row],[קולות]]),,MOD(קולות5[[#This Row],[קולות כשרים]],מדד_למנדט))","v":0},{"$f":"IF(ISBLANK(קולות5[[#This Row],[קולות]]),,BaderOfer(קולות5[מפלגה],קולות5[קולות כשרים],קולות5[מנדטים בסיסי],(120- SUM(קולות5[מנדטים בסיסי])),MATCH(קולות5[[#This Row],[מפלגה]],קולות5[מפלגה],0)))","v":0},{"$f":"IF(ISBLANK(קולות5[[#This Row],[קולות]]),,BaderOfer_Odafim(קולות5[מפלגה],קולות5[קולות כשרים],קולות5[מנדטים בסיסי],הסכמי_עודפים6[[#All],[עמודה1]],הסכמי_עודפים6[[#All],[עמודה2]],(120- SUM(קולות5[מנדטים בסיסי])),MATCH(קולות5[[#This Row],[מפלגה]],קולות5[מפלגה],0)))","v":0},null,"הימין החדש","מרצ"]
[null,null,null,{"$f":"IF(ISBLANK(קולות5[[#This Row],[קולות]]),,(קולות5[[#This Row],[קולות]]/סך_הקולות))","v":0},{"$f":"IF(קולות5[[#This Row],[אחוז]]>=אחוז_החסימה,קולות5[[#This Row],[קולות]],)","v":0},{"$f":"IF(ISBLANK(קולות5[[#This Row],[קולות]]),,INT(קולות5[[#This Row],[קולות כשרים]]/מדד_למנדט))","v":0},{"$f":"IF(ISBLANK(קולות5[[#This Row],[קולות]]),,MOD(קולות5[[#This Row],[קולות כשרים]],מדד_למנדט))","v":0},{"$f":"IF(ISBLANK(קולות5[[#This Row],[קולות]]),,BaderOfer(קולות5[מפלגה],קולות5[קולות כשרים],קולות5[מנדטים בסיסי],(120- SUM(קולות5[מנדטים בסיסי])),MATCH(קולות5[[#This Row],[מפלגה]],קולות5[מפלגה],0)))","v":0},{"$f":"IF(ISBLANK(קולות5[[#This Row],[קולות]]),,BaderOfer_Odafim(קולות5[מפלגה],קולות5[קולות כשרים],קולות5[מנדטים בסיסי],הסכמי_עודפים6[[#All],[עמודה1]],הסכמי_עודפים6[[#All],[עמודה2]],(120- SUM(קולות5[מנדטים בסיסי])),MATCH(קולות5[[#This Row],[מפלגה]],קולות5[מפלגה],0)))","v":0},null,"הליכוד","הרשימה הערבית"]
[null,null,null,{"$f":"IF(ISBLANK(קולות5[[#This Row],[קולות]]),,(קולות5[[#This Row],[קולות]]/סך_הקולות))","v":0},{"$f":"IF(קולות5[[#This Row],[אחוז]]>=אחוז_החסימה,קולות5[[#This Row],[קולות]],)","v":0},{"$f":"IF(ISBLANK(קולות5[[#This Row],[קולות]]),,INT(קולות5[[#This Row],[קולות כשרים]]/מדד_למנדט))","v":0},{"$f":"IF(ISBLANK(קולות5[[#This Row],[קולות]]),,MOD(קולות5[[#This Row],[קולות כשרים]],מדד_למנדט))","v":0},{"$f":"IF(ISBLANK(קולות5[[#This Row],[קולות]]),,BaderOfer(קולות5[מפלגה],קולות5[קולות כשרים],קולות5[מנדטים בסיסי],(120- SUM(קולות5[מנדטים בסיסי])),MATCH(קולות5[[#This Row],[מפלגה]],קולות5[מפלגה],0)))","v":0},{"$f":"IF(ISBLANK(קולות5[[#This Row],[קולות]]),,BaderOfer_Odafim(קולות5[מפלגה],קולות5[קולות כשרים],קולות5[מנדטים בסיסי],הסכמי_עודפים6[[#All],[עמודה1]],הסכמי_עודפים6[[#All],[עמודה2]],(120- SUM(קולות5[מנדטים בסיסי])),MATCH(קולות5[[#This Row],[מפלגה]],קולות5[מפלגה],0)))","v":0},null,"ש\"ס","איימן עודה"]
[null,null,null,{"$f":"IF(ISBLANK(קולות5[[#This Row],[קולות]]),,(קולות5[[#This Row],[קולות]]/סך_הקולות))","v":0},{"$f":"IF(קולות5[[#This Row],[אחוז]]>=אחוז_החסימה,קולות5[[#This Row],[קולות]],)","v":0},{"$f":"IF(ISBLANK(קולות5[[#This Row],[קולות]]),,INT(קולות5[[#This Row],[קולות כשרים]]/מדד_למנדט))","v":0},{"$f":"IF(ISBLANK(קולות5[[#This Row],[קולות]]),,MOD(קולות5[[#This Row],[קולות כשרים]],מדד_למנדט))","v":0},{"$f":"IF(ISBLANK(קולות5[[#This Row],[קולות]]),,BaderOfer(קולות5[מפלגה],קולות5[קולות כשרים],קולות5[מנדטים בסיסי],(120- SUM(קולות5[מנדטים בסיסי])),MATCH(קולות5[[#This Row],[מפלגה]],קולות5[מפלגה],0)))","v":0},{"$f":"IF(ISBLANK(קולות5[[#This Row],[קולות]]),,BaderOfer_Odafim(קולות5[מפלגה],קולות5[קולות כשרים],קולות5[מנדטים בסיסי],הסכמי_עודפים6[[#All],[עמודה1]],הסכמי_עודפים6[[#All],[עמודה2]],(120- SUM(קולות5[מנדטים בסיסי])),MATCH(קולות5[[#This Row],[מפלגה]],קולות5[מפלגה],0)))","v":0},null,"איחוד מפלגות הימין","כחול לבן"]
[null,null,null,{"$f":"IF(ISBLANK(קולות5[[#This Row],[קולות]]),,(קולות5[[#This Row],[קולות]]/סך_הקולות))","v":0},{"$f":"IF(קולות5[[#This Row],[אחוז]]>=אחוז_החסימה,קולות5[[#This Row],[קולות]],)","v":0},{"$f":"IF(ISBLANK(קולות5[[#This Row],[קולות]]),,INT(קולות5[[#This Row],[קולות כשרים]]/מדד_למנדט))","v":0},{"$f":"IF(ISBLANK(קולות5[[#This Row],[קולות]]),,MOD(קולות5[[#This Row],[קולות כשרים]],מדד_למנדט))","v":0},{"$f":"IF(ISBLANK(קולות5[[#This Row],[קולות]]),,BaderOfer(קולות5[מפלגה],קולות5[קולות כשרים],קולות5[מנדטים בסיסי],(120- SUM(קולות5[מנדטים בסיסי])),MATCH(קולות5[[#This Row],[מפלגה]],קולות5[מפלגה],0)))","v":0},{"$f":"IF(ISBLANK(קולות5[[#This Row],[קולות]]),,BaderOfer_Odafim(קולות5[מפלגה],קולות5[קולות כשרים],קולות5[מנדטים בסיסי],הסכמי_עודפים6[[#All],[עמודה1]],הסכמי_עודפים6[[#All],[עמודה2]],(120- SUM(קולות5[מנדטים בסיסי])),MATCH(קולות5[[#This Row],[מפלגה]],קולות5[מפלגה],0)))","v":0},null,"כולנו"]
[null,null,null,{"$f":"IF(ISBLANK(קולות5[[#This Row],[קולות]]),,(קולות5[[#This Row],[קולות]]/סך_הקולות))","v":0},{"$f":"IF(קולות5[[#This Row],[אחוז]]>=אחוז_החסימה,קולות5[[#This Row],[קולות]],)","v":0},{"$f":"IF(ISBLANK(קולות5[[#This Row],[קולות]]),,INT(קולות5[[#This Row],[קולות כשרים]]/מדד_למנדט))","v":0},{"$f":"IF(ISBLANK(קולות5[[#This Row],[קולות]]),,MOD(קולות5[[#This Row],[קולות כשרים]],מדד_למנדט))","v":0},{"$f":"IF(ISBLANK(קולות5[[#This Row],[קולות]]),,BaderOfer(קולות5[מפלגה],קולות5[קולות כשרים],קולות5[מנדטים בסיסי],(120- SUM(קולות5[מנדטים בסיסי])),MATCH(קולות5[[#This Row],[מפלגה]],קולות5[מפלגה],0)))","v":0},{"$f":"IF(ISBLANK(קולות5[[#This Row],[קולות]]),,BaderOfer_Odafim(קולות5[מפלגה],קולות5[קולות כשרים],קולות5[מנדטים בסיסי],הסכמי_עודפים6[[#All],[עמודה1]],הסכמי_עודפים6[[#All],[עמודה2]],(120- SUM(קולות5[מנדטים בסיסי])),MATCH(קולות5[[#This Row],[מפלגה]],קולות5[מפלגה],0)))","v":0},null,{"$f":"Goshim(טבלה37[ימין],קולות[מפלגה],קולות[מנדטים הסכם עודפים])","v":48},{"$f":"Goshim(טבלה37[שמאל],קולות[מפלגה],קולות[מנדטים הסכם עודפים])","v":38}]

{"sheet":"כנסת ה-22","index":2,"n_rows":25,"n_cols":12,"rows_kept":25,"cut":false,"hidden":false,"merged":[[7,10,7,11],[16,10,16,11],[0,1,0,8]]}
[null,"הכנסת ה-22 | י\"ז אלול תשע\"ט | 17/9/2019"]
[null,null,null,null,null,null,null,null,{"$f":"IF(NOT(SUM(קולות[מנדטים הסכם עודפים])=120),\"נדרש הטלת מטבע\",\"\")","v":""}]
[null,"מפלגה","קולות","אחוז","קולות כשרים","מנדטים בסיסי","קולות עודפים","מנדטים באדר עופר","מנדטים הסכם עודפים",null,"סך הקולות","סך הקולות הכשרים"]
[null,"יהדות התורה",268775,{"$f":"IF(ISBLANK(קולות[[#This Row],[קולות]]),,(קולות[[#This Row],[קולות]]/סך_הקולות))","v":6.1172523243965653E-2},{"$f":"IF(קולות[[#This Row],[אחוז]]>=אחוז_החסימה,קולות[[#This Row],[קולות]],)","v":268775},{"$f":"IF(ISBLANK(קולות[[#This Row],[קולות]]),,INT(קולות[[#This Row],[קולות כשרים]]/מדד_למנדט))","v":7},{"$f":"IF(ISBLANK(קולות[[#This Row],[קולות]]),,MOD(קולות[[#This Row],[קולות כשרים]],מדד_למנדט))","v":17351.80000000001},{"$f":"IF(ISBLANK(קולות[[#This Row],[קולות]]),,BaderOfer(קולות[מפלגה],קולות[קולות כשרים],קולות[מנדטים בסיסי],(120- SUM(קולות[מנדטים בסיסי])),MATCH(קולות[[#This Row],[מפלגה]],קולות[מפלגה],0)))","v":7},{"$f":"IF(ISBLANK(קולות[[#This Row],[קולות]]),,BaderOfer_Odafim(קולות[מפלגה],קולות[קולות כשרים],קולות[מנדטים בסיסי],הסכמי_עודפים[[#All],[עמודה1]],הסכמי_עודפים[[#All],[עמודה2]],(120- SUM(קולות[מנדטים בסיסי])),MATCH(קולות[[#This Row],[מפלגה]],קולות[מפלגה],0)))","v":7},null,{"$f":"SUM(קולות[קולות])","v":4393721},{"$f":"SUM(קולות[קולות כשרים])","v":4310112}]
[null,"הליכוד",1113617,{"$f":"IF(ISBLANK(קולות[[#This Row],[קולות]]),,(קולות[[#This Row],[קולות]]/סך_הקולות))","v":0.25345646662589638},{"$f":"IF(קולות[[#This Row],[אחוז]]>=אחוז_החסימה,קולות[[#This Row],[קולות]],)","v":1113617},{"$f":"IF(ISBLANK(קולות[[#This Row],[קולות]]),,INT(קולות[[#This Row],[קולות כשרים]]/מדד_למנדט))","v":31},{"$f":"IF(ISBLANK(קולות[[#This Row],[קולות]]),,MOD(קולות[[#This Row],[קולות כשרים]],מדד_למנדט))","v":171.40000000004511},{"$f":"IF(ISBLANK(קולות[[#This Row],[קולות]]),,BaderOfer(קולות[מפלגה],קולות[קולות כשרים],קולות[מנדטים בסיסי],(120- SUM(קולות[מנדטים בסיסי])),MATCH(קולות[[#This Row],[מפלגה]],קולות[מפלגה],0)))","v":32},{"$f":"IF(ISBLANK(קולות[[#This Row],[קולות]]),,BaderOfer_Odafim(קולות[מפלגה],קולות[קולות כשרים],קולות[מנדטים בסיסי],הסכמי_עודפים[[#All],[עמודה1]],הסכמי_עודפים[[#All],[עמודה2]],(120- SUM(קולות[מנדטים בסיסי])),MATCH(קולות[[#This Row],[מפלגה]],קולות[מפלגה],0)))","v":32},null,"אחוז החסימה","מדד למנדט"]
[null,"כחול לבן",1151214,{"$f":"IF(ISBLANK(קולות[[#This Row],[קולות]]),,(קולות[[#This Row],[קולות]]/סך_הקולות))","v":0.26201345055819431},{"$f":"IF(קולות[[#This Row],[אחוז]]>=אחוז_החסימה,קולות[[#This Row],[קולות]],)","v":1151214},{"$f":"IF(ISBLANK(קולות[[#This Row],[קולות]]),,INT(קולות[[#This Row],[קולות כשרים]]/מדד_למנדט))","v":32},{"$f":"IF(ISBLANK(קולות[[#This Row],[קולות]]),,MOD(קולות[[#This Row],[קולות כשרים]],מדד_למנדט))","v":1850.8000000000466},{"$f":"IF(ISBLANK(קולות[[#This Row],[קולות]]),,BaderOfer(קולות[מפלגה],קולות[קולות כשרים],קולות[מנדטים בסיסי],(120- SUM(קולות[מנדטים בסיסי])),MATCH(קולות[[#This Row],[מפלגה]],קולות[מפלגה],0)))","v":33},{"$f":"IF(ISBLANK(קולות[[#This Row],[קולות]]),,BaderOfer_Odafim(קולות[מפלגה],קולות[קולות כשרים],קולות[מנדטים בסיסי],הסכמי_עודפים[[#All],[עמודה1]],הסכמי_עודפים[[#All],[עמודה2]],(120- SUM(קולות[מנדטים בסיסי])),MATCH(קולות[[#This Row],[מפלגה]],קולות[מפלגה],0)))","v":33},null,3.2500000000000001E-2,{"$f":"סך_קולות_כשרים/120","v":35917.599999999999}]
[null,"ש\"ס",330199,{"$f":"IF(ISBLANK(קולות[[#This Row],[קולות]]),,(קולות[[#This Row],[קולות]]/סך_הקולות))","v":7.5152473268102371E-2},{"$f":"IF(קולות[[#This Row],[אחוז]]>=אחוז_החסימה,קולות[[#This Row],[קולות]],)","v":330199},{"$f":"IF(ISBLANK(קולות[[#This Row],[קולות]]),,INT(קולות[[#This Row],[קולות כשרים]]/מדד_למנדט))","v":9},{"$f":"IF(ISBLANK(קולות[[#This Row],[קולות]]),,MOD(קולות[[#This Row],[קולות כשרים]],מדד_למנדט))","v":6940.6000000000131},{"$f":"IF(ISBLANK(קולות[[#This Row],[קולות]]),,BaderOfer(קולות[מפלגה],קולות[קולות כשרים],קולות[מנדטים בסיסי],(120- SUM(קולות[מנדטים בסיסי])),MATCH(קולות[[#This Row],[מפלגה]],קולות[מפלגה],0)))","v":9},{"$f":"IF(ISBLANK(קולות[[#This Row],[קולות]]),,BaderOfer_Odafim(קולות[מפלגה],קולות[קולות כשרים],קולות[מנדטים בסיסי],הסכמי_עודפים[[#All],[עמודה1]],הסכמי_עודפים[[#All],[עמודה2]],(120- SUM(קולות[מנדטים בסיסי])),MATCH(קולות[[#This Row],[מפלגה]],קולות[מפלגה],0)))","v":9}]
[null,"ימינה",260665,{"$f":"IF(ISBLANK(קולות[[#This Row],[קולות]]),,(קולות[[#This Row],[קולות]]/סך_הקולות))","v":5.9326707362620433E-2},{"$f":"IF(קולות[[#This Row],[אחוז]]>=אחוז_החסימה,קולות[[#This Row],[קולות]],)","v":260665},{"$f":"IF(ISBLANK(קולות[[#This Row],[קולות]]),,INT(קולות[[#This Row],[קולות כשרים]]/מדד_למנדט))","v":7},{"$f":"IF(ISBLANK(קולות[[#This Row],[קולות]]),,MOD(קולות[[#This Row],[קולות כשרים]],מדד_למנדט))","v":9241.8000000000102},{"$f":"IF(ISBLANK(קולות[[#This Row],[קולות]]),,BaderOfer(קולות[מפלגה],קולות[קולות כשרים],קולות[מנדטים בסיסי],(120- SUM(קולות[מנדטים בסיסי])),MATCH(קולות[[#This Row],[מפלגה]],קולות[מפלגה],0)))","v":7},{"$f":"IF(ISBLANK(קולות[[#This Row],[קולות]]),,BaderOfer_Odafim(קולות[מפלגה],קולות[קולות כשרים],קולות[מנדטים בסיסי],הסכמי_עודפים[[#All],[עמודה1]],הסכמי_עודפים[[#All],[עמודה2]],(120- SUM(קולות[מנדטים בסיסי])),MATCH(קולות[[#This Row],[מפלגה]],קולות[מפלגה],0)))","v":7},null,"הסכמי עודפים"]
[null,"ישראל ביתנו",310154,{"$f":"IF(ISBLANK(קולות[[#This Row],[קולות]]),,(קולות[[#This Row],[קולות]]/סך_הקולות))","v":7.0590280994173277E-2},{"$f":"IF(קולות[[#This Row],[אחוז]]>=אחוז_החסימה,קולות[[#This Row],[קולות]],)","v":310154},{"$f":"IF(ISBLANK(קולות[[#This Row],[קולות]]),,INT(קולות[[#This Row],[קולות כשרים]]/מדד_למנדט))","v":8},{"$f":"IF(ISBLANK(קולות[[#This Row],[קולות]]),,MOD(קולות[[#This Row],[קולות כשרים]],מדד_למנדט))","v":22813.200000000012},{"$f":"IF(ISBLANK(קולות[[#This Row],[קולות]]),,BaderOfer(קולות[מפלגה],קולות[קולות כשרים],קולות[מנדטים בסיסי],(120- SUM(קולות[מנדטים בסיסי])),MATCH(קולות[[#This Row],[מפלגה]],קולות[מפלגה],0)))","v":8},{"$f":"IF(ISBLANK(קולות[[#This Row],[קולות]]),,BaderOfer_Odafim(קולות[מפלגה],קולות[קולות כשרים],קולות[מנדטים בסיסי],הסכמי_עודפים[[#All],[עמודה1]],הסכמי_עודפים[[#All],[עמודה2]],(120- SUM(קולות[מנדטים בסיסי])),MATCH(קולות[[#This Row],[מפלגה]],קולות[מפלגה],0)))","v":8},null,"יהדות התורה","ש\"ס"]
[null,"מרצ",192495,{"$f":"IF(ISBLANK(קולות[[#This Row],[קולות]]),,(קולות[[#This Row],[קולות]]/סך_הקולות))","v":4.3811384473433794E-2},{"$f":"IF(קולות[[#This Row],[אחוז]]>=אחוז_החסימה,קולות[[#This Row],[קולות]],)","v":192495},{"$f":"IF(ISBLANK(קולות[[#This Row],[קולות]]),,INT(קולות[[#This Row],[קולות כשרים]]/מדד_למנדט))","v":5},{"$f":"IF(ISBLANK(קולות[[#This Row],[קולות]]),,MOD(קולות[[#This Row],[קולות כשרים]],מדד_למנדט))","v":12907.000000000007},{"$f":"IF(ISBLANK(קולות[[#This Row],[קולות]]),,BaderOfer(קולות[מפלגה],קולות[קולות כשרים],קולות[מנדטים בסיסי],(120- SUM(קולות[מנדטים בסיסי])),MATCH(קולות[[#This Row],[מפלגה]],קולות[מפלגה],0)))","v":5},{"$f":"IF(ISBLANK(קולות[[#This Row],[קולות]]),,BaderOfer_Odafim(קולות[מפלגה],קולות[קולות כשרים],קולות[מנדטים בסיסי],הסכמי_עודפים[[#All],[עמודה1]],הסכמי_עודפים[[#All],[עמודה2]],(120- SUM(קולות[מנדטים בסיסי])),MATCH(קולות[[#This Row],[מפלגה]],קולות[מפלגה],0)))","v":5},null,"כחול לבן","ישראל ביתנו"]
[null,"עוצמה יהודית",83609,{"$f":"IF(ISBLANK(קולות[[#This Row],[קולות]]),,(קולות[[#This Row],[קולות]]/סך_הקולות))","v":1.9029200989320896E-2},{"$f":"IF(קולות[[#This Row],[אחוז]]>=אחוז_החסימה,קולות[[#This Row],[קולות]],)","v":0},{"$f":"IF(ISBLANK(קולות[[#This Row],[קולות]]),,INT(קולות[[#This Row],[קולות כשרים]]/מדד_למנדט))","v":0},{"$f":"IF(ISBLANK(קולות[[#This Row],[קולות]]),,MOD(קולות[[#This Row],[קולות כשרים]],מדד_למנדט))","v":0},{"$f":"IF(ISBLANK(קולות[[#This Row],[קולות]]),,BaderOfer(קולות[מפלגה],קולות[קולות כשרים],קולות[מנדטים בסיסי],(120- SUM(קולות[מנדטים בסיסי])),MATCH(קולות[[#This Row],[מפלגה]],קולות[מפלגה],0)))","v":0},{"$f":"IF(ISBLANK(קולות[[#This Row],[קולות]]),,BaderOfer_Odafim(קולות[מפלגה],קולות[קולות כשרים],קולות[מנדטים בסיסי],הסכמי_עודפים[[#All],[עמודה1]],הסכמי_עודפים[[#All],[עמודה2]],(120- SUM(קולות[מנדטים בסיסי])),MATCH(קולות[[#This Row],[מפלגה]],קולות[מפלגה],0)))","v":0},null,"הליכוד","ימינה"]
[null,"המפלגות  הערביות",470211,{"$f":"IF(ISBLANK(קולות[[#This Row],[קולות]]),,(קולות[[#This Row],[קולות]]/סך_הקולות))","v":0.10701885713726475},{"$f":"IF(קולות[[#This Row],[אחוז]]>=אחוז_החסימה,קולות[[#This Row],[קולות]],)","v":470211},{"$f":"IF(ISBLANK(קולות[[#This Row],[קולות]]),,INT(קולות[[#This Row],[קולות כשרים]]/מדד_למנדט))","v":13},{"$f":"IF(ISBLANK(קולות[[#This Row],[קולות]]),,MOD(קולות[[#This Row],[קולות כשרים]],מדד_למנדט))","v":3282.2000000000189},{"$f":"IF(ISBLANK(קולות[[#This Row],[קולות]]),,BaderOfer(קולות[מפלגה],קולות[קולות כשרים],קולות[מנדטים בסיסי],(120- SUM(קולות[מנדטים בסיסי])),MATCH(קולות[[#This Row],[מפלגה]],קולות[מפלגה],0)))","v":13},{"$f":"IF(ISBLANK(קולות[[#This Row],[קולות]]),,BaderOfer_Odafim(קולות[מפלגה],קולות[קולות כשרים],קולות[מנדטים בסיסי],הסכמי_עודפים[[#All],[עמודה1]],הסכמי_עודפים[[#All],[עמודה2]],(120- SUM(קולות[מנדטים בסיסי])),MATCH(קולות[[#This Row],[מפלגה]],קולות[מפלגה],0)))","v":13},null,"העבודה - גשר","מרצ"]
[null,"העבודה - גשר",212782,{"$f":"IF(ISBLANK(קולות[[#This Row],[קולות]]),,(קולות[[#This Row],[קולות]]/סך_הקולות))","v":4.8428655347028178E-2},{"$f":"IF(קולות[[#This Row],[אחוז]]>=אחוז_החסימה,קולות[[#This Row],[קולות]],)","v":212782},{"$f":"IF(ISBLANK(קולות[[#This Row],[קולות]]),,INT(קולות[[#This Row],[קולות כשרים]]/מדד_למנדט))","v":5},{"$f":"IF(ISBLANK(קולות[[#This Row],[קולות]]),,MOD(קולות[[#This Row],[קולות כשרים]],מדד_למנדט))","v":33194.000000000007},{"$f":"IF(ISBLANK(קולות[[#This Row],[קולות]]),,BaderOfer(קולות[מפלגה],קולות[קולות כשרים],קולות[מנדטים בסיסי],(120- SUM(קולות[מנדטים בסיסי])),MATCH(קולות[[#This Row],[מפלגה]],קולות[מפלגה],0)))","v":6},{"$f":"IF(ISBLANK(קולות[[#This Row],[קולות]]),,BaderOfer_Odafim(קולות[מפלגה],קולות[קולות כשרים],קולות[מנדטים בסיסי],הסכמי_עודפים[[#All],[עמודה1]],הסכמי_עודפים[[#All],[עמודה2]],(120- SUM(קולות[מנדטים בסיסי])),MATCH(קולות[[#This Row],[מפלגה]],קולות[מפלגה],0)))","v":6}]
[null,null,null,{"$f":"IF(ISBLANK(קולות[[#This Row],[קולות]]),,(קולות[[#This Row],[קולות]]/סך_הקולות))","v":0},{"$f":"IF(קולות[[#This Row],[אחוז]]>=אחוז_החסימה,קולות[[#This Row],[קולות]],)","v":0},{"$f":"IF(ISBLANK(קולות[[#This Row],[קולות]]),,INT(קולות[[#This Row],[קולות כשרים]]/מדד_למנדט))","v":0},{"$f":"IF(ISBLANK(קולות[[#This Row],[קולות]]),,MOD(קולות[[#This Row],[קולות כשרים]],מדד_למנדט))","v":0},{"$f":"IF(ISBLANK(קולות[[#This Row],[קולות]]),,BaderOfer(קולות[מפלגה],קולות[קולות כשרים],קולות[מנדטים בסיסי],(120- SUM(קולות[מנדטים בסיסי])),MATCH(קולות[[#This Row],[מפלגה]],קולות[מפלגה],0)))","v":0},{"$f":"IF(ISBLANK(קולות[[#This Row],[קולות]]),,BaderOfer_Odafim(קולות[מפלגה],קולות[קולות כשרים],קולות[מנדטים בסיסי],הסכמי_עודפים[[#All],[עמודה1]],הסכמי_עודפים[[#All],[עמודה2]],(120- SUM(קולות[מנדטים בסיסי])),MATCH(קולות[[#This Row],[מפלגה]],קולות[מפלגה],0)))","v":0}]
[null,null,null,{"$f":"IF(ISBLANK(קולות[[#This Row],[קולות]]),,(קולות[[#This Row],[קולות]]/סך_הקולות))","v":0},{"$f":"IF(קולות[[#This Row],[אחוז]]>=אחוז_החסימה,קולות[[#This Row],[קולות]],)","v":0},{"$f":"IF(ISBLANK(קולות[[#This Row],[קולות]]),,INT(קולות[[#This Row],[קולות כשרים]]/מדד_למנדט))","v":0},{"$f":"IF(ISBLANK(קולות[[#This Row],[קולות]]),,MOD(קולות[[#This Row],[קולות כשרים]],מדד_למנדט))","v":0},{"$f":"IF(ISBLANK(קולות[[#This Row],[קולות]]),,BaderOfer(קולות[מפלגה],קולות[קולות כשרים],קולות[מנדטים בסיסי],(120- SUM(קולות[מנדטים בסיסי])),MATCH(קולות[[#This Row],[מפלגה]],קולות[מפלגה],0)))","v":0},{"$f":"IF(ISBLANK(קולות[[#This Row],[קולות]]),,BaderOfer_Odafim(קולות[מפלגה],קולות[קולות כשרים],קולות[מנדטים בסיסי],הסכמי_עודפים[[#All],[עמודה1]],הסכמי_עודפים[[#All],[עמודה2]],(120- SUM(קולות[מנדטים בסיסי])),MATCH(קולות[[#This Row],[מפלגה]],קולות[מפלגה],0)))","v":0}]
[null,null,null,{"$f":"IF(ISBLANK(קולות[[#This Row],[קולות]]),,(קולות[[#This Row],[קולות]]/סך_הקולות))","v":0},{"$f":"IF(קולות[[#This Row],[אחוז]]>=אחוז_החסימה,קולות[[#This Row],[קולות]],)","v":0},{"$f":"IF(ISBLANK(קולות[[#This Row],[קולות]]),,INT(קולות[[#This Row],[קולות כשרים]]/מדד_למנדט))","v":0},{"$f":"IF(ISBLANK(קולות[[#This Row],[קולות]]),,MOD(קולות[[#This Row],[קולות כשרים]],מדד_למנדט))","v":0},{"$f":"IF(ISBLANK(קולות[[#This Row],[קולות]]),,BaderOfer(קולות[מפלגה],קולות[קולות כשרים],קולות[מנדטים בסיסי],(120- SUM(קולות[מנדטים בסיסי])),MATCH(קולות[[#This Row],[מפלגה]],קולות[מפלגה],0)))","v":0},{"$f":"IF(ISBLANK(קולות[[#This Row],[קולות]]),,BaderOfer_Odafim(קולות[מפלגה],קולות[קולות כשרים],קולות[מנדטים בסיסי],הסכמי_עודפים[[#All],[עמודה1]],הסכמי_עודפים[[#All],[עמודה2]],(120- SUM(קולות[מנדטים בסיסי])),MATCH(קולות[[#This Row],[מפלגה]],קולות[מפלגה],0)))","v":0}]
[null,null,null,{"$f":"IF(ISBLANK(קולות[[#This Row],[קולות]]),,(קולות[[#This Row],[קולות]]/סך_הקולות))","v":0},{"$f":"IF(קולות[[#This Row],[אחוז]]>=אחוז_החסימה,קולות[[#This Row],[קולות]],)","v":0},{"$f":"IF(ISBLANK(קולות[[#This Row],[קולות]]),,INT(קולות[[#This Row],[קולות כשרים]]/מדד_למנדט))","v":0},{"$f":"IF(ISBLANK(קולות[[#This Row],[קולות]]),,MOD(קולות[[#This Row],[קולות כשרים]],מדד_למנדט))","v":0},{"$f":"IF(ISBLANK(קולות[[#This Row],[קולות]]),,BaderOfer(קולות[מפלגה],קולות[קולות כשרים],קולות[מנדטים בסיסי],(120- SUM(קולות[מנדטים בסיסי])),MATCH(קולות[[#This Row],[מפלגה]],קולות[מפלגה],0)))","v":0},{"$f":"IF(ISBLANK(קולות[[#This Row],[קולות]]),,BaderOfer_Odafim(קולות[מפלגה],קולות[קולות כשרים],קולות[מנדטים בסיסי],הסכמי_עודפים[[#All],[עמודה1]],הסכמי_עודפים[[#All],[עמודה2]],(120- SUM(קולות[מנדטים בסיסי])),MATCH(קולות[[#This Row],[מפלגה]],קולות[מפלגה],0)))","v":0},null,"גושים"]
[null,null,null,{"$f":"IF(ISBLANK(קולות[[#This Row],[קולות]]),,(קולות[[#This Row],[קולות]]/סך_הקולות))","v":0},{"$f":"IF(קולות[[#This Row],[אחוז]]>=אחוז_החסימה,קולות[[#This Row],[קולות]],)","v":0},{"$f":"IF(ISBLANK(קולות[[#This Row],[קולות]]),,INT(קולות[[#This Row],[קולות כשרים]]/מדד_למנדט))","v":0},{"$f":"IF(ISBLANK(קולות[[#This Row],[קולות]]),,MOD(קולות[[#This Row],[קולות כשרים]],מדד_למנדט))","v":0},{"$f":"IF(ISBLANK(קולות[[#This Row],[קולות]]),,BaderOfer(קולות[מפלגה],קולות[קולות כשרים],קולות[מנדטים בסיסי],(120- SUM(קולות[מנדטים בסיסי])),MATCH(קולות[[#This Row],[מפלגה]],קולות[מפלגה],0)))","v":0},{"$f":"IF(ISBLANK(קולות[[#This Row],[קולות]]),,BaderOfer_Odafim(קולות[מפלגה],קולות[קולות כשרים],קולות[מנדטים בסיסי],הסכמי_עודפים[[#All],[עמודה1]],הסכמי_עודפים[[#All],[עמודה2]],(120- SUM(קולות[מנדטים בסיסי])),MATCH(קולות[[#This Row],[מפלגה]],קולות[מפלגה],0)))","v":0},null,"ימין","שמאל"]
[null,null,null,{"$f":"IF(ISBLANK(קולות[[#This Row],[קולות]]),,(קולות[[#This Row],[קולות]]/סך_הקולות))","v":0},{"$f":"IF(קולות[[#This Row],[אחוז]]>=אחוז_החסימה,קולות[[#This Row],[קולות]],)","v":0},{"$f":"IF(ISBLANK(קולות[[#This Row],[קולות]]),,INT(קולות[[#This Row],[קולות כשרים]]/מדד_למנדט))","v":0},{"$f":"IF(ISBLANK(קולות[[#This Row],[קולות]]),,MOD(קולות[[#This Row],[קולות כשרים]],מדד_למנדט))","v":0},{"$f":"IF(ISBLANK(קולות[[#This Row],[קולות]]),,BaderOfer(קולות[מפלגה],קולות[קולות כשרים],קולות[מנדטים בסיסי],(120- SUM(קולות[מנדטים בסיסי])),MATCH(קולות[[#This Row],[מפלגה]],קולות[מפלגה],0)))","v":0},{"$f":"IF(ISBLANK(קולות[[#This Row],[קולות]]),,BaderOfer_Odafim(קולות[מפלגה],קולות[קולות כשרים],קולות[מנדטים בסיסי],הסכמי_עודפים[[#All],[עמודה1]],הסכמי_עודפים[[#All],[עמודה2]],(120- SUM(קולות[מנדטים בסיסי])),MATCH(קולות[[#This Row],[מפלגה]],קולות[מפלגה],0)))","v":0},null,"הליכוד","כחול לבן"]
[null,null,null,{"$f":"IF(ISBLANK(קולות[[#This Row],[קולות]]),,(קולות[[#This Row],[קולות]]/סך_הקולות))","v":0},{"$f":"IF(קולות[[#This Row],[אחוז]]>=אחוז_החסימה,קולות[[#This Row],[קולות]],)","v":0},{"$f":"IF(ISBLANK(קולות[[#This Row],[קולות]]),,INT(קולות[[#This Row],[קולות כשרים]]/מדד_למנדט))","v":0},{"$f":"IF(ISBLANK(קולות[[#This Row],[קולות]]),,MOD(קולות[[#This Row],[קולות כשרים]],מדד_למנדט))","v":0},{"$f":"IF(ISBLANK(קולות[[#This Row],[קולות]]),,BaderOfer(קולות[מפלגה],קולות[קולות כשרים],קולות[מנדטים בסיסי],(120- SUM(קולות[מנדטים בסיסי])),MATCH(קולות[[#This Row],[מפלגה]],קולות[מפלגה],0)))","v":0},{"$f":"IF(ISBLANK(קולות[[#This Row],[קולות]]),,BaderOfer_Odafim(קולות[מפלגה],קולות[קולות כשרים],קולות[מנדטים בסיסי],הסכמי_עודפים[[#All],[עמודה1]],הסכמי_עודפים[[#All],[עמודה2]],(120- SUM(קולות[מנדטים בסיסי])),MATCH(קולות[[#This Row],[מפלגה]],קולות[מפלגה],0)))","v":0},null,"ימינה"]
[null,null,null,{"$f":"IF(ISBLANK(קולות[[#This Row],[קולות]]),,(קולות[[#This Row],[קולות]]/סך_הקולות))","v":0},{"$f":"IF(קולות[[#This Row],[אחוז]]>=אחוז_החסימה,קולות[[#This Row],[קולות]],)","v":0},{"$f":"IF(ISBLANK(קולות[[#This Row],[קולות]]),,INT(קולות[[#This Row],[קולות כשרים]]/מדד_למנדט))","v":0},{"$f":"IF(ISBLANK(קולות[[#This Row],[קולות]]),,MOD(קולות[[#This Row],[קולות כשרים]],מדד_למנדט))","v":0},{"$f":"IF(ISBLANK(קולות[[#This Row],[קולות]]),,BaderOfer(קולות[מפלגה],קולות[קולות כשרים],קולות[מנדטים בסיסי],(120- SUM(קולות[מנדטים בסיסי])),MATCH(קולות[[#This Row],[מפלגה]],קולות[מפלגה],0)))","v":0},{"$f":"IF(ISBLANK(קולות[[#This Row],[קולות]]),,BaderOfer_Odafim(קולות[מפלגה],קולות[קולות כשרים],קולות[מנדטים בסיסי],הסכמי_עודפים[[#All],[עמודה1]],הסכמי_עודפים[[#All],[עמודה2]],(120- SUM(קולות[מנדטים בסיסי])),MATCH(קולות[[#This Row],[מפלגה]],קולות[מפלגה],0)))","v":0},null,"ש\"ס"]
[null,null,null,{"$f":"IF(ISBLANK(קולות[[#This Row],[קולות]]),,(קולות[[#This Row],[קולות]]/סך_הקולות))","v":0},{"$f":"IF(קולות[[#This Row],[אחוז]]>=אחוז_החסימה,קולות[[#This Row],[קולות]],)","v":0},{"$f":"IF(ISBLANK(קולות[[#This Row],[קולות]]),,INT(קולות[[#This Row],[קולות כשרים]]/מדד_למנדט))","v":0},{"$f":"IF(ISBLANK(קולות[[#This Row],[קולות]]),,MOD(קולות[[#This Row],[קולות כשרים]],מדד_למנדט))","v":0},{"$f":"IF(ISBLANK(קולות[[#This Row],[קולות]]),,BaderOfer(קולות[מפלגה],קולות[קולות כשרים],קולות[מנדטים בסיסי],(120- SUM(קולות[מנדטים בסיסי])),MATCH(קולות[[#This Row],[מפלגה]],קולות[מפלגה],0)))","v":0},{"$f":"IF(ISBLANK(קולות[[#This Row],[קולות]]),,BaderOfer_Odafim(קולות[מפלגה],קולות[קולות כשרים],קולות[מנדטים בסיסי],הסכמי_עודפים[[#All],[עמודה1]],הסכמי_עודפים[[#All],[עמודה2]],(120- SUM(קולות[מנדטים בסיסי])),MATCH(קולות[[#This Row],[מפלגה]],קולות[מפלגה],0)))","v":0},null,"יהדות התורה"]
[null,null,null,{"$f":"IF(ISBLANK(קולות[[#This Row],[קולות]]),,(קולות[[#This Row],[קולות]]/סך_הקולות))","v":0},{"$f":"IF(קולות[[#This Row],[אחוז]]>=אחוז_החסימה,קולות[[#This Row],[קולות]],)","v":0},{"$f":"IF(ISBLANK(קולות[[#This Row],[קולות]]),,INT(קולות[[#This Row],[קולות כשרים]]/מדד_למנדט))","v":0},{"$f":"IF(ISBLANK(קולות[[#This Row],[קולות]]),,MOD(קולות[[#This Row],[קולות כשרים]],מדד_למנדט))","v":0},{"$f":"IF(ISBLANK(קולות[[#This Row],[קולות]]),,BaderOfer(קולות[מפלגה],קולות[קולות כשרים],קולות[מנדטים בסיסי],(120- SUM(קולות[מנדטים בסיסי])),MATCH(קולות[[#This Row],[מפלגה]],קולות[מפלגה],0)))","v":0},{"$f":"IF(ISBLANK(קולות[[#This Row],[קולות]]),,BaderOfer_Odafim(קולות[מפלגה],קולות[קולות כשרים],קולות[מנדטים בסיסי],הסכמי_עודפים[[#All],[עמודה1]],הסכמי_עודפים[[#All],[עמודה2]],(120- SUM(קולות[מנדטים בסיסי])),MATCH(קולות[[#This Row],[מפלגה]],קולות[מפלגה],0)))","v":0}]
[null,null,null,{"$f":"IF(ISBLANK(קולות[[#This Row],[קולות]]),,(קולות[[#This Row],[קולות]]/סך_הקולות))","v":0},{"$f":"IF(קולות[[#This Row],[אחוז]]>=אחוז_החסימה,קולות[[#This Row],[קולות]],)","v":0},{"$f":"IF(ISBLANK(קולות[[#This Row],[קולות]]),,INT(קולות[[#This Row],[קולות כשרים]]/מדד_למנדט))","v":0},{"$f":"IF(ISBLANK(קולות[[#This Row],[קולות]]),,MOD(קולות[[#This Row],[קולות כשרים]],מדד_למנדט))","v":0},{"$f":"IF(ISBLANK(קולות[[#This Row],[קולות]]),,BaderOfer(קולות[מפלגה],קולות[קולות כשרים],קולות[מנדטים בסיסי],(120- SUM(קולות[מנדטים בסיסי])),MATCH(קולות[[#This Row],[מפלגה]],קולות[מפלגה],0)))","v":0},{"$f":"IF(ISBLANK(קולות[[#This Row],[קולות]]),,BaderOfer_Odafim(קולות[מפלגה],קולות[קולות כשרים],קולות[מנדטים בסיסי],הסכמי_עודפים[[#All],[עמודה1]],הסכמי_עודפים[[#All],[עמודה2]],(120- SUM(קולות[מנדטים בסיסי])),MATCH(קולות[[#This Row],[מפלגה]],קולות[מפלגה],0)))","v":0}]
[null,null,null,{"$f":"IF(ISBLANK(קולות[[#This Row],[קולות]]),,(קולות[[#This Row],[קולות]]/סך_הקולות))","v":0},{"$f":"IF(קולות[[#This Row],[אחוז]]>=אחוז_החסימה,קולות[[#This Row],[קולות]],)","v":0},{"$f":"IF(ISBLANK(קולות[[#This Row],[קולות]]),,INT(קולות[[#This Row],[קולות כשרים]]/מדד_למנדט))","v":0},{"$f":"IF(ISBLANK(קולות[[#This Row],[קולות]]),,MOD(קולות[[#This Row],[קולות כשרים]],מדד_למנדט))","v":0},{"$f":"IF(ISBLANK(קולות[[#This Row],[קולות]]),,BaderOfer(קולות[מפלגה],קולות[קולות כשרים],קולות[מנדטים בסיסי],(120- SUM(קולות[מנדטים בסיסי])),MATCH(קולות[[#This Row],[מפלגה]],קולות[מפלגה],0)))","v":0},{"$f":"IF(ISBLANK(קולות[[#This Row],[קולות]]),,BaderOfer_Odafim(קולות[מפלגה],קולות[קולות כשרים],קולות[מנדטים בסיסי],הסכמי_עודפים[[#All],[עמודה1]],הסכמי_עודפים[[#All],[עמודה2]],(120- SUM(קולות[מנדטים בסיסי])),MATCH(קולות[[#This Row],[מפלגה]],קולות[מפלגה],0)))","v":0},null,{"$f":"Goshim(טבלה3[ימין],קולות[מפלגה],קולות[מנדטים הסכם עודפים])","v":55},{"$f":"Goshim(טבלה3[שמאל],קולות[מפלגה],קולות[מנדטים הסכם עודפים])","v":33}]

{"sheet":"כנסת ה-23","index":3,"n_rows":25,"n_cols":12,"rows_kept":25,"cut":false,"hidden":false,"merged":[[0,1,0,8],[7,10,7,11],[16,10,16,11]]}
[null,"הכנסת ה-23 | ו' אדר תש\"פ | 2/3/2020"]
[null,null,null,null,null,null,null,null,{"$f":"IF(NOT(SUM(קולות11[מנדטים הסכם עודפים])=120),\"נדרש הטלת מטבע\",\"\")","v":""}]
[null,"מפלגה","קולות","אחוז","קולות כשרים","מנדטים בסיסי","קולות עודפים","מנדטים באדר עופר","מנדטים הסכם עודפים",null,"סך הקולות","סך הקולות הכשרים"]
[null,"יהדות התורה",1,{"$f":"IF(ISBLANK(קולות11[[#This Row],[קולות]]),,(קולות11[[#This Row],[קולות]]/סך_הקולות))","v":1},{"$f":"IF(קולות11[[#This Row],[אחוז]]>=אחוז_החסימה,קולות11[[#This Row],[קולות]],)","v":1},{"$f":"IF(ISBLANK(קולות11[[#This Row],[קולות]]),,INT(קולות11[[#This Row],[קולות כשרים]]/מדד_למנדט))","v":120},{"$f":"IF(ISBLANK(קולות11[[#This Row],[קולות]]),,MOD(קולות11[[#This Row],[קולות כשרים]],מדד_למנדט))","v":1.3877787807814457E-17},{"$f":"IF(ISBLANK(קולות11[[#This Row],[קולות]]),,BaderOfer(קולות11[מפלגה],קולות11[קולות כשרים],קולות11[מנדטים בסיסי],(120- SUM(קולות11[מנדטים בסיסי])),MATCH(קולות11[[#This Row],[מפלגה]],קולות11[מפלגה],0)))","v":120},{"$f":"IF(ISBLANK(קולות11[[#This Row],[קולות]]),,BaderOfer_Odafim(קולות11[מפלגה],קולות11[קולות כשרים],קולות11[מנדטים בסיסי],הסכמי_עודפים12[[#All],[עמודה1]],הסכמי_עודפים12[[#All],[עמודה2]],(120- SUM(קולות11[מנדטים בסיסי])),MATCH(קולות11[[#This Row],[מפלגה]],קולות11[מפלגה],0)))","v":120},null,{"$f":"SUM(קולות11[קולות])","v":1},{"$f":"SUM(קולות11[קולות כשרים])","v":1}]
[null,"הליכוד",0,{"$f":"IF(ISBLANK(קולות11[[#This Row],[קולות]]),,(קולות11[[#This Row],[קולות]]/סך_הקולות))","v":0},{"$f":"IF(קולות11[[#This Row],[אחוז]]>=אחוז_החסימה,קולות11[[#This Row],[קולות]],)","v":0},{"$f":"IF(ISBLANK(קולות11[[#This Row],[קולות]]),,INT(קולות11[[#This Row],[קולות כשרים]]/מדד_למנדט))","v":0},{"$f":"IF(ISBLANK(קולות11[[#This Row],[קולות]]),,MOD(קולות11[[#This Row],[קולות כשרים]],מדד_למנדט))","v":0},{"$f":"IF(ISBLANK(קולות11[[#This Row],[קולות]]),,BaderOfer(קולות11[מפלגה],קולות11[קולות כשרים],קולות11[מנדטים בסיסי],(120- SUM(קולות11[מנדטים בסיסי])),MATCH(קולות11[[#This Row],[מפלגה]],קולות11[מפלגה],0)))","v":0},{"$f":"IF(ISBLANK(קולות11[[#This Row],[קולות]]),,BaderOfer_Odafim(קולות11[מפלגה],קולות11[קולות כשרים],קולות11[מנדטים בסיסי],הסכמי_עודפים12[[#All],[עמודה1]],הסכמי_עודפים12[[#All],[עמודה2]],(120- SUM(קולות11[מנדטים בסיסי])),MATCH(קולות11[[#This Row],[מפלגה]],קולות11[מפלגה],0)))","v":0},null,"אחוז החסימה","מדד למנדט"]
[null,"כחול לבן",0,{"$f":"IF(ISBLANK(קולות11[[#This Row],[קולות]]),,(קולות11[[#This Row],[קולות]]/סך_הקולות))","v":0},{"$f":"IF(קולות11[[#This Row],[אחוז]]>=אחוז_החסימה,קולות11[[#This Row],[קולות]],)","v":0},{"$f":"IF(ISBLANK(קולות11[[#This Row],[קולות]]),,INT(קולות11[[#This Row],[קולות כשרים]]/מדד_למנדט))","v":0},{"$f":"IF(ISBLANK(קולות11[[#This Row],[קולות]]),,MOD(קולות11[[#This Row],[קולות כשרים]],מדד_למנדט))","v":0},{"$f":"IF(ISBLANK(קולות11[[#This Row],[קולות]]),,BaderOfer(קולות11[מפלגה],קולות11[קולות כשרים],קולות11[מנדטים בסיסי],(120- SUM(קולות11[מנדטים בסיסי])),MATCH(קולות11[[#This Row],[מפלגה]],קולות11[מפלגה],0)))","v":0},{"$f":"IF(ISBLANK(קולות11[[#This Row],[קולות]]),,BaderOfer_Odafim(קולות11[מפלגה],קולות11[קולות כשרים],קולות11[מנדטים בסיסי],הסכמי_עודפים12[[#All],[עמודה1]],הסכמי_עודפים12[[#All],[עמודה2]],(120- SUM(קולות11[מנדטים בסיסי])),MATCH(קולות11[[#This Row],[מפלגה]],קולות11[מפלגה],0)))","v":0},null,3.2500000000000001E-2,{"$f":"סך_קולות_כשרים/120","v":8.3333333333333332E-3}]
[null,"ש\"ס",0,{"$f":"IF(ISBLANK(קולות11[[#This Row],[קולות]]),,(קולות11[[#This Row],[קולות]]/סך_הקולות))","v":0},{"$f":"IF(קולות11[[#This Row],[אחוז]]>=אחוז_החסימה,קולות11[[#This Row],[קולות]],)","v":0},{"$f":"IF(ISBLANK(קולות11[[#This Row],[קולות]]),,INT(קולות11[[#This Row],[קולות כשרים]]/מדד_למנדט))","v":0},{"$f":"IF(ISBLANK(קולות11[[#This Row],[קולות]]),,MOD(קולות11[[#This Row],[קולות כשרים]],מדד_למנדט))","v":0},{"$f":"IF(ISBLANK(קולות11[[#This Row],[קולות]]),,BaderOfer(קולות11[מפלגה],קולות11[קולות כשרים],קולות11[מנדטים בסיסי],(120- SUM(קולות11[מנדטים בסיסי])),MATCH(קולות11[[#This Row],[מפלגה]],קולות11[מפלגה],0)))","v":0},{"$f":"IF(ISBLANK(קולות11[[#This Row],[קולות]]),,BaderOfer_Odafim(קולות11[מפלגה],קולות11[קולות כשרים],קולות11[מנדטים בסיסי],הסכמי_עודפים12[[#All],[עמודה1]],הסכמי_עודפים12[[#All],[עמודה2]],(120- SUM(קולות11[מנדטים בסיסי])),MATCH(קולות11[[#This Row],[מפלגה]],קולות11[מפלגה],0)))","v":0}]
[null,"העבודה - גשר - מרצ",0,{"$f":"IF(ISBLANK(קולות11[[#This Row],[קולות]]),,(קולות11[[#This Row],[קולות]]/סך_הקולות))","v":0},{"$f":"IF(קולות11[[#This Row],[אחוז]]>=אחוז_החסימה,קולות11[[#This Row],[קולות]],)","v":0},{"$f":"IF(ISBLANK(קולות11[[#This Row],[קולות]]),,INT(קולות11[[#This Row],[קולות כשרים]]/מדד_למנדט))","v":0},{"$f":"IF(ISBLANK(קולות11[[#This Row],[קולות]]),,MOD(קולות11[[#This Row],[קולות כשרים]],מדד_למנדט))","v":0},{"$f":"IF(ISBLANK(קולות11[[#This Row],[קולות]]),,BaderOfer(קולות11[מפלגה],קולות11[קולות כשרים],קולות11[מנדטים בסיסי],(120- SUM(קולות11[מנדטים בסיסי])),MATCH(קולות11[[#This Row],[מפלגה]],קולות11[מפלגה],0)))","v":0},{"$f":"IF(ISBLANK(קולות11[[#This Row],[קולות]]),,BaderOfer_Odafim(קולות11[מפלגה],קולות11[קולות כשרים],קולות11[מנדטים בסיסי],הסכמי_עודפים12[[#All],[עמודה1]],הסכמי_עודפים12[[#All],[עמודה2]],(120- SUM(קולות11[מנדטים בסיסי])),MATCH(קולות11[[#This Row],[מפלגה]],קולות11[מפלגה],0)))","v":0},null,"הסכמי עודפים"]
[null,"ישראל ביתנו",0,{"$f":"IF(ISBLANK(קולות11[[#This Row],[קולות]]),,(קולות11[[#This Row],[קולות]]/סך_הקולות))","v":0},{"$f":"IF(קולות11[[#This Row],[אחוז]]>=אחוז_החסימה,קולות11[[#This Row],[קולות]],)","v":0},{"$f":"IF(ISBLANK(קולות11[[#This Row],[קולות]]),,INT(קולות11[[#This Row],[קולות כשרים]]/מדד_למנדט))","v":0},{"$f":"IF(ISBLANK(קולות11[[#This Row],[קולות]]),,MOD(קולות11[[#This Row],[קולות כשרים]],מדד_למנדט))","v":0},{"$f":"IF(ISBLANK(קולות11[[#This Row],[קולות]]),,BaderOfer(קולות11[מפלגה],קולות11[קולות כשרים],קולות11[מנדטים בסיסי],(120- SUM(קולות11[מנדטים בסיסי])),MATCH(קולות11[[#This Row],[מפלגה]],קולות11[מפלגה],0)))","v":0},{"$f":"IF(ISBLANK(קולות11[[#This Row],[קולות]]),,BaderOfer_Odafim(קולות11[מפלגה],קולות11[קולות כשרים],קולות11[מנדטים בסיסי],הסכמי_עודפים12[[#All],[עמודה1]],הסכמי_עודפים12[[#All],[עמודה2]],(120- SUM(קולות11[מנדטים בסיסי])),MATCH(קולות11[[#This Row],[מפלגה]],קולות11[מפלגה],0)))","v":0},null,"יהדות התורה","ש\"ס"]
[null,"מרצ",0,{"$f":"IF(ISBLANK(קולות11[[#This Row],[קולות]]),,(קולות11[[#This Row],[קולות]]/סך_הקולות))","v":0},{"$f":"IF(קולות11[[#This Row],[אחוז]]>=אחוז_החסימה,קולות11[[#This Row],[קולות]],)","v":0},{"$f":"IF(ISBLANK(קולות11[[#This Row],[קולות]]),,INT(קולות11[[#This Row],[קולות כשרים]]/מדד_למנדט))","v":0},{"$f":"IF(ISBLANK(קולות11[[#This Row],[קולות]]),,MOD(קולות11[[#This Row],[קולות כשרים]],מדד_למנדט))","v":0},{"$f":"IF(ISBLANK(קולות11[[#This Row],[קולות]]),,BaderOfer(קולות11[מפלגה],קולות11[קולות כשרים],קולות11[מנדטים בסיסי],(120- SUM(קולות11[מנדטים בסיסי])),MATCH(קולות11[[#This Row],[מפלגה]],קולות11[מפלגה],0)))","v":0},{"$f":"IF(ISBLANK(קולות11[[#This Row],[קולות]]),,BaderOfer_Odafim(קולות11[מפלגה],קולות11[קולות כשרים],קולות11[מנדטים בסיסי],הסכמי_עודפים12[[#All],[עמודה1]],הסכמי_עודפים12[[#All],[עמודה2]],(120- SUM(קולות11[מנדטים בסיסי])),MATCH(קולות11[[#This Row],[מפלגה]],קולות11[מפלגה],0)))","v":0},null,"כחול לבן","העבודה - גשר - מרצ"]
[null,"עוצמה יהודית",0,{"$f":"IF(ISBLANK(קולות11[[#This Row],[קולות]]),,(קולות11[[#This Row],[קולות]]/סך_הקולות))","v":0},{"$f":"IF(קולות11[[#This Row],[אחוז]]>=אחוז_החסימה,קולות11[[#This Row],[קולות]],)","v":0},{"$f":"IF(ISBLANK(קולות11[[#This Row],[קולות]]),,INT(קולות11[[#This Row],[קולות כשרים]]/מדד_למנדט))","v":0},{"$f":"IF(ISBLANK(קולות11[[#This Row],[קולות]]),,MOD(קולות11[[#This Row],[קולות כשרים]],מדד_למנדט))","v":0},{"$f":"IF(ISBLANK(קולות11[[#This Row],[קולות]]),,BaderOfer(קולות11[מפלגה],קולות11[קולות כשרים],קולות11[מנדטים בסיסי],(120- SUM(קולות11[מנדטים בסיסי])),MATCH(קולות11[[#This Row],[מפלגה]],קולות11[מפלגה],0)))","v":0},{"$f":"IF(ISBLANK(קולות11[[#This Row],[קולות]]),,BaderOfer_Odafim(קולות11[מפלגה],קולות11[קולות כשרים],קולות11[מנדטים בסיסי],הסכמי_עודפים12[[#All],[עמודה1]],הסכמי_עודפים12[[#All],[עמודה2]],(120- SUM(קולות11[מנדטים בסיסי])),MATCH(קולות11[[#This Row],[מפלגה]],קולות11[מפלגה],0)))","v":0},null,"הליכוד","ימינה"]
[null,"המפלגות  הערביות",0,{"$f":"IF(ISBLANK(קולות11[[#This Row],[קולות]]),,(קולות11[[#This Row],[קולות]]/סך_הקולות))","v":0},{"$f":"IF(קולות11[[#This Row],[אחוז]]>=אחוז_החסימה,קולות11[[#This Row],[קולות]],)","v":0},{"$f":"IF(ISBLANK(קולות11[[#This Row],[קולות]]),,INT(קולות11[[#This Row],[קולות כשרים]]/מדד_למנדט))","v":0},{"$f":"IF(ISBLANK(קולות11[[#This Row],[קולות]]),,MOD(קולות11[[#This Row],[קולות כשרים]],מדד_למנדט))","v":0},{"$f":"IF(ISBLANK(קולות11[[#This Row],[קולות]]),,BaderOfer(קולות11[מפלגה],קולות11[קולות כשרים],קולות11[מנדטים בסיסי],(120- SUM(קולות11[מנדטים בסיסי])),MATCH(קולות11[[#This Row],[מפלגה]],קולות11[מפלגה],0)))","v":0},{"$f":"IF(ISBLANK(קולות11[[#This Row],[קולות]]),,BaderOfer_Odafim(קולות11[מפלגה],קולות11[קולות כשרים],קולות11[מנדטים בסיסי],הסכמי_עודפים12[[#All],[עמודה1]],הסכמי_עודפים12[[#All],[עמודה2]],(120- SUM(קולות11[מנדטים בסיסי])),MATCH(קולות11[[#This Row],[מפלגה]],קולות11[מפלגה],0)))","v":0}]
[null,null,null,{"$f":"IF(ISBLANK(קולות11[[#This Row],[קולות]]),,(קולות11[[#This Row],[קולות]]/סך_הקולות))","v":0},{"$f":"IF(קולות11[[#This Row],[אחוז]]>=אחוז_החסימה,קולות11[[#This Row],[קולות]],)","v":0},{"$f":"IF(ISBLANK(קולות11[[#This Row],[קולות]]),,INT(קולות11[[#This Row],[קולות כשרים]]/מדד_למנדט))","v":0},{"$f":"IF(ISBLANK(קולות11[[#This Row],[קולות]]),,MOD(קולות11[[#This Row],[קולות כשרים]],מדד_למנדט))","v":0},{"$f":"IF(ISBLANK(קולות11[[#This Row],[קולות]]),,BaderOfer(קולות11[מפלגה],קולות11[קולות כשרים],קולות11[מנדטים בסיסי],(120- SUM(קולות11[מנדטים בסיסי])),MATCH(קולות11[[#This Row],[מפלגה]],קולות11[מפלגה],0)))","v":0},{"$f":"IF(ISBLANK(קולות11[[#This Row],[קולות]]),,BaderOfer_Odafim(קולות11[מפלגה],קולות11[קולות כשרים],קולות11[מנדטים בסיסי],הסכמי_עודפים12[[#All],[עמודה1]],הסכמי_עודפים12[[#All],[עמודה2]],(120- SUM(קולות11[מנדטים בסיסי])),MATCH(קולות11[[#This Row],[מפלגה]],קולות11[מפלגה],0)))","v":0}]
[null,null,null,{"$f":"IF(ISBLANK(קולות11[[#This Row],[קולות]]),,(קולות11[[#This Row],[קולות]]/סך_הקולות))","v":0},{"$f":"IF(קולות11[[#This Row],[אחוז]]>=אחוז_החסימה,קולות11[[#This Row],[קולות]],)","v":0},{"$f":"IF(ISBLANK(קולות11[[#This Row],[קולות]]),,INT(קולות11[[#This Row],[קולות כשרים]]/מדד_למנדט))","v":0},{"$f":"IF(ISBLANK(קולות11[[#This Row],[קולות]]),,MOD(קולות11[[#This Row],[קולות כשרים]],מדד_למנדט))","v":0},{"$f":"IF(ISBLANK(קולות11[[#This Row],[קולות]]),,BaderOfer(קולות11[מפלגה],קולות11[קולות כשרים],קולות11[מנדטים בסיסי],(120- SUM(קולות11[מנדטים בסיסי])),MATCH(קולות11[[#This Row],[מפלגה]],קולות11[מפלגה],0)))","v":0},{"$f":"IF(ISBLANK(קולות11[[#This Row],[קולות]]),,BaderOfer_Odafim(קולות11[מפלגה],קולות11[קולות כשרים],קולות11[מנדטים בסיסי],הסכמי_עודפים12[[#All],[עמודה1]],הסכמי_עודפים12[[#All],[עמודה2]],(120- SUM(קולות11[מנדטים בסיסי])),MATCH(קולות11[[#This Row],[מפלגה]],קולות11[מפלגה],0)))","v":0}]
[null,null,null,{"$f":"IF(ISBLANK(קולות11[[#This Row],[קולות]]),,(קולות11[[#This Row],[קולות]]/סך_הקולות))","v":0},{"$f":"IF(קולות11[[#This Row],[אחוז]]>=אחוז_החסימה,קולות11[[#This Row],[קולות]],)","v":0},{"$f":"IF(ISBLANK(קולות11[[#This Row],[קולות]]),,INT(קולות11[[#This Row],[קולות כשרים]]/מדד_למנדט))","v":0},{"$f":"IF(ISBLANK(קולות11[[#This Row],[קולות]]),,MOD(קולות11[[#This Row],[קולות כשרים]],מדד_למנדט))","v":0},{"$f":"IF(ISBLANK(קולות11[[#This Row],[קולות]]),,BaderOfer(קולות11[מפלגה],קולות11[קולות כשרים],קולות11[מנדטים בסיסי],(120- SUM(קולות11[מנדטים בסיסי])),MATCH(קולות11[[#This Row],[מפלגה]],קולות11[מפלגה],0)))","v":0},{"$f":"IF(ISBLANK(קולות11[[#This Row],[קולות]]),,BaderOfer_Odafim(קולות11[מפלגה],קולות11[קולות כשרים],קולות11[מנדטים בסיסי],הסכמי_עודפים12[[#All],[עמודה1]],הסכמי_עודפים12[[#All],[עמודה2]],(120- SUM(קולות11[מנדטים בסיסי])),MATCH(קולות11[[#This Row],[מפלגה]],קולות11[מפלגה],0)))","v":0}]
[null,null,null,{"$f":"IF(ISBLANK(קולות11[[#This Row],[קולות]]),,(קולות11[[#This Row],[קולות]]/סך_הקולות))","v":0},{"$f":"IF(קולות11[[#This Row],[אחוז]]>=אחוז_החסימה,קולות11[[#This Row],[קולות]],)","v":0},{"$f":"IF(ISBLANK(קולות11[[#This Row],[קולות]]),,INT(קולות11[[#This Row],[קולות כשרים]]/מדד_למנדט))","v":0},{"$f":"IF(ISBLANK(קולות11[[#This Row],[קולות]]),,MOD(קולות11[[#This Row],[קולות כשרים]],מדד_למנדט))","v":0},{"$f":"IF(ISBLANK(קולות11[[#This Row],[קולות]]),,BaderOfer(קולות11[מפלגה],קולות11[קולות כשרים],קולות11[מנדטים בסיסי],(120- SUM(קולות11[מנדטים בסיסי])),MATCH(קולות11[[#This Row],[מפלגה]],קולות11[מפלגה],0)))","v":0},{"$f":"IF(ISBLANK(קולות11[[#This Row],[קולות]]),,BaderOfer_Odafim(קולות11[מפלגה],קולות11[קולות כשרים],קולות11[מנדטים בסיסי],הסכמי_עודפים12[[#All],[עמודה1]],הסכמי_עודפים12[[#All],[עמודה2]],(120- SUM(קולות11[מנדטים בסיסי])),MATCH(קולות11[[#This Row],[מפלגה]],קולות11[מפלגה],0)))","v":0}]
[null,null,null,{"$f":"IF(ISBLANK(קולות11[[#This Row],[קולות]]),,(קולות11[[#This Row],[קולות]]/סך_הקולות))","v":0},{"$f":"IF(קולות11[[#This Row],[אחוז]]>=אחוז_החסימה,קולות11[[#This Row],[קולות]],)","v":0},{"$f":"IF(ISBLANK(קולות11[[#This Row],[קולות]]),,INT(קולות11[[#This Row],[קולות כשרים]]/מדד_למנדט))","v":0},{"$f":"IF(ISBLANK(קולות11[[#This Row],[קולות]]),,MOD(קולות11[[#This Row],[קולות כשרים]],מדד_למנדט))","v":0},{"$f":"IF(ISBLANK(קולות11[[#This Row],[קולות]]),,BaderOfer(קולות11[מפלגה],קולות11[קולות כשרים],קולות11[מנדטים בסיסי],(120- SUM(קולות11[מנדטים בסיסי])),MATCH(קולות11[[#This Row],[מפלגה]],קולות11[מפלגה],0)))","v":0},{"$f":"IF(ISBLANK(קולות11[[#This Row],[קולות]]),,BaderOfer_Odafim(קולות11[מפלגה],קולות11[קולות כשרים],קולות11[מנדטים בסיסי],הסכמי_עודפים12[[#All],[עמודה1]],הסכמי_עודפים12[[#All],[עמודה2]],(120- SUM(קולות11[מנדטים בסיסי])),MATCH(קולות11[[#This Row],[מפלגה]],קולות11[מפלגה],0)))","v":0},null,"גושים"]
[null,null,null,{"$f":"IF(ISBLANK(קולות11[[#This Row],[קולות]]),,(קולות11[[#This Row],[קולות]]/סך_הקולות))","v":0},{"$f":"IF(קולות11[[#This Row],[אחוז]]>=אחוז_החסימה,קולות11[[#This Row],[קולות]],)","v":0},{"$f":"IF(ISBLANK(קולות11[[#This Row],[קולות]]),,INT(קולות11[[#This Row],[קולות כשרים]]/מדד_למנדט))","v":0},{"$f":"IF(ISBLANK(קולות11[[#This Row],[קולות]]),,MOD(קולות11[[#This Row],[קולות כשרים]],מדד_למנדט))","v":0},{"$f":"IF(ISBLANK(קולות11[[#This Row],[קולות]]),,BaderOfer(קולות11[מפלגה],קולות11[קולות כשרים],קולות11[מנדטים בסיסי],(120- SUM(קולות11[מנדטים בסיסי])),MATCH(קולות11[[#This Row],[מפלגה]],קולות11[מפלגה],0)))","v":0},{"$f":"IF(ISBLANK(קולות11[[#This Row],[קולות]]),,BaderOfer_Odafim(קולות11[מפלגה],קולות11[קולות כשרים],קולות11[מנדטים בסיסי],הסכמי_עודפים12[[#All],[עמודה1]],הסכמי_עודפים12[[#All],[עמודה2]],(120- SUM(קולות11[מנדטים בסיסי])),MATCH(קולות11[[#This Row],[מפלגה]],קולות11[מפלגה],0)))","v":0},null,"ימין","שמאל"]
[null,null,null,{"$f":"IF(ISBLANK(קולות11[[#This Row],[קולות]]),,(קולות11[[#This Row],[קולות]]/סך_הקולות))","v":0},{"$f":"IF(קולות11[[#This Row],[אחוז]]>=אחוז_החסימה,קולות11[[#This Row],[קולות]],)","v":0},{"$f":"IF(ISBLANK(קולות11[[#This Row],[קולות]]),,INT(קולות11[[#This Row],[קולות כשרים]]/מדד_למנדט))","v":0},{"$f":"IF(ISBLANK(קולות11[[#This Row],[קולות]]),,MOD(קולות11[[#This Row],[קולות כשרים]],מדד_למנדט))","v":0},{"$f":"IF(ISBLANK(קולות11[[#This Row],[קולות]]),,BaderOfer(קולות11[מפלגה],קולות11[קולות כשרים],קולות11[מנדטים בסיסי],(120- SUM(קולות11[מנדטים בסיסי])),MATCH(קולות11[[#This Row],[מפלגה]],קולות11[מפלגה],0)))","v":0},{"$f":"IF(ISBLANK(קולות11[[#This Row],[קולות]]),,BaderOfer_Odafim(קולות11[מפלגה],קולות11[קולות כשרים],קולות11[מנדטים בסיסי],הסכמי_עודפים12[[#All],[עמודה1]],הסכמי_עודפים12[[#All],[עמודה2]],(120- SUM(קולות11[מנדטים בסיסי])),MATCH(קולות11[[#This Row],[מפלגה]],קולות11[מפלגה],0)))","v":0},null,"הליכוד","כחול לבן"]
[null,null,null,{"$f":"IF(ISBLANK(קולות11[[#This Row],[קולות]]),,(קולות11[[#This Row],[קולות]]/סך_הקולות))","v":0},{"$f":"IF(קולות11[[#This Row],[אחוז]]>=אחוז_החסימה,קולות11[[#This Row],[קולות]],)","v":0},{"$f":"IF(ISBLANK(קולות11[[#This Row],[קולות]]),,INT(קולות11[[#This Row],[קולות כשרים]]/מדד_למנדט))","v":0},{"$f":"IF(ISBLANK(קולות11[[#This Row],[קולות]]),,MOD(קולות11[[#This Row],[קולות כשרים]],מדד_למנדט))","v":0},{"$f":"IF(ISBLANK(קולות11[[#This Row],[קולות]]),,BaderOfer(קולות11[מפלגה],קולות11[קולות כשרים],קולות11[מנדטים בסיסי],(120- SUM(קולות11[מנדטים בסיסי])),MATCH(קולות11[[#This Row],[מפלגה]],קולות11[מפלגה],0)))","v":0},{"$f":"IF(ISBLANK(קולות11[[#This Row],[קולות]]),,BaderOfer_Odafim(קולות11[מפלגה],קולות11[קולות כשרים],קולות11[מנדטים בסיסי],הסכמי_עודפים12[[#All],[עמודה1]],הסכמי_עודפים12[[#All],[עמודה2]],(120- SUM(קולות11[מנדטים בסיסי])),MATCH(קולות11[[#This Row],[מפלגה]],קולות11[מפלגה],0)))","v":0},null,"ימינה","העבודה - גשר - מרצ"]
[null,null,null,{"$f":"IF(ISBLANK(קולות11[[#This Row],[קולות]]),,(קולות11[[#This Row],[קולות]]/סך_הקולות))","v":0},{"$f":"IF(קולות11[[#This Row],[אחוז]]>=אחוז_החסימה,קולות11[[#This Row],[קולות]],)","v":0},{"$f":"IF(ISBLANK(קולות11[[#This Row],[קולות]]),,INT(קולות11[[#This Row],[קולות כשרים]]/מדד_למנדט))","v":0},{"$f":"IF(ISBLANK(קולות11[[#This Row],[קולות]]),,MOD(קולות11[[#This Row],[קולות כשרים]],מדד_למנדט))","v":0},{"$f":"IF(ISBLANK(קולות11[[#This Row],[קולות]]),,BaderOfer(קולות11[מפלגה],קולות11[קולות כשרים],קולות11[מנדטים בסיסי],(120- SUM(קולות11[מנדטים בסיסי])),MATCH(קולות11[[#This Row],[מפלגה]],קולות11[מפלגה],0)))","v":0},{"$f":"IF(ISBLANK(קולות11[[#This Row],[קולות]]),,BaderOfer_Odafim(קולות11[מפלגה],קולות11[קולות כשרים],קולות11[מנדטים בסיסי],הסכמי_עודפים12[[#All],[עמודה1]],הסכמי_עודפים12[[#All],[עמודה2]],(120- SUM(קולות11[מנדטים בסיסי])),MATCH(קולות11[[#This Row],[מפלגה]],קולות11[מפלגה],0)))","v":0},null,"ש\"ס"]
[null,null,null,{"$f":"IF(ISBLANK(קולות11[[#This Row],[קולות]]),,(קולות11[[#This Row],[קולות]]/סך_הקולות))","v":0},{"$f":"IF(קולות11[[#This Row],[אחוז]]>=אחוז_החסימה,קולות11[[#This Row],[קולות]],)","v":0},{"$f":"IF(ISBLANK(קולות11[[#This Row],[קולות]]),,INT(קולות11[[#This Row],[קולות כשרים]]/מדד_למנדט))","v":0},{"$f":"IF(ISBLANK(קולות11[[#This Row],[קולות]]),,MOD(קולות11[[#This Row],[קולות כשרים]],מדד_למנדט))","v":0},{"$f":"IF(ISBLANK(קולות11[[#This Row],[קולות]]),,BaderOfer(קולות11[מפלגה],קולות11[קולות כשרים],קולות11[מנדטים בסיסי],(120- SUM(קולות11[מנדטים בסיסי])),MATCH(קולות11[[#This Row],[מפלגה]],קולות11[מפלגה],0)))","v":0},{"$f":"IF(ISBLANK(קולות11[[#This Row],[קולות]]),,BaderOfer_Odafim(קולות11[מפלגה],קולות11[קולות כשרים],קולות11[מנדטים בסיסי],הסכמי_עודפים12[[#All],[עמודה1]],הסכמי_עודפים12[[#All],[עמודה2]],(120- SUM(קולות11[מנדטים בסיסי])),MATCH(קולות11[[#This Row],[מפלגה]],קולות11[מפלגה],0)))","v":0},null,"יהדות התורה"]
[null,null,null,{"$f":"IF(ISBLANK(קולות11[[#This Row],[קולות]]),,(קולות11[[#This Row],[קולות]]/סך_הקולות))","v":0},{"$f":"IF(קולות11[[#This Row],[אחוז]]>=אחוז_החסימה,קולות11[[#This Row],[קולות]],)","v":0},{"$f":"IF(ISBLANK(קולות11[[#This Row],[קולות]]),,INT(קולות11[[#This Row],[קולות כשרים]]/מדד_למנדט))","v":0},{"$f":"IF(ISBLANK(קולות11[[#This Row],[קולות]]),,MOD(קולות11[[#This Row],[קולות כשרים]],מדד_למנדט))","v":0},{"$f":"IF(ISBLANK(קולות11[[#This Row],[קולות]]),,BaderOfer(קולות11[מפלגה],קולות11[קולות כשרים],קולות11[מנדטים בסיסי],(120- SUM(קולות11[מנדטים בסיסי])),MATCH(קולות11[[#This Row],[מפלגה]],קולות11[מפלגה],0)))","v":0},{"$f":"IF(ISBLANK(קולות11[[#This Row],[קולות]]),,BaderOfer_Odafim(קולות11[מפלגה],קולות11[קולות כשרים],קולות11[מנדטים בסיסי],הסכמי_עודפים12[[#All],[עמודה1]],הסכמי_עודפים12[[#All],[עמודה2]],(120- SUM(קולות11[מנדטים בסיסי])),MATCH(קולות11[[#This Row],[מפלגה]],קולות11[מפלגה],0)))","v":0}]
[null,null,null,{"$f":"IF(ISBLANK(קולות11[[#This Row],[קולות]]),,(קולות11[[#This Row],[קולות]]/סך_הקולות))","v":0},{"$f":"IF(קולות11[[#This Row],[אחוז]]>=אחוז_החסימה,קולות11[[#This Row],[קולות]],)","v":0},{"$f":"IF(ISBLANK(קולות11[[#This Row],[קולות]]),,INT(קולות11[[#This Row],[קולות כשרים]]/מדד_למנדט))","v":0},{"$f":"IF(ISBLANK(קולות11[[#This Row],[קולות]]),,MOD(קולות11[[#This Row],[קולות כשרים]],מדד_למנדט))","v":0},{"$f":"IF(ISBLANK(קולות11[[#This Row],[קולות]]),,BaderOfer(קולות11[מפלגה],קולות11[קולות כשרים],קולות11[מנדטים בסיסי],(120- SUM(קולות11[מנדטים בסיסי])),MATCH(קולות11[[#This Row],[מפלגה]],קולות11[מפלגה],0)))","v":0},{"$f":"IF(ISBLANK(קולות11[[#This Row],[קולות]]),,BaderOfer_Odafim(קולות11[מפלגה],קולות11[קולות כשרים],קולות11[מנדטים בסיסי],הסכמי_עודפים12[[#All],[עמודה1]],הסכמי_עודפים12[[#All],[עמודה2]],(120- SUM(קולות11[מנדטים בסיסי])),MATCH(קולות11[[#This Row],[מפלגה]],קולות11[מפלגה],0)))","v":0}]
[null,null,null,{"$f":"IF(ISBLANK(קולות11[[#This Row],[קולות]]),,(קולות11[[#This Row],[קולות]]/סך_הקולות))","v":0},{"$f":"IF(קולות11[[#This Row],[אחוז]]>=אחוז_החסימה,קולות11[[#This Row],[קולות]],)","v":0},{"$f":"IF(ISBLANK(קולות11[[#This Row],[קולות]]),,INT(קולות11[[#This Row],[קולות כשרים]]/מדד_למנדט))","v":0},{"$f":"IF(ISBLANK(קולות11[[#This Row],[קולות]]),,MOD(קולות11[[#This Row],[קולות כשרים]],מדד_למנדט))","v":0},{"$f":"IF(ISBLANK(קולות11[[#This Row],[קולות]]),,BaderOfer(קולות11[מפלגה],קולות11[קולות כשרים],קולות11[מנדטים בסיסי],(120- SUM(קולות11[מנדטים בסיסי])),MATCH(קולות11[[#This Row],[מפלגה]],קולות11[מפלגה],0)))","v":0},{"$f":"IF(ISBLANK(קולות11[[#This Row],[קולות]]),,BaderOfer_Odafim(קולות11[מפלגה],קולות11[קולות כשרים],קולות11[מנדטים בסיסי],הסכמי_עודפים12[[#All],[עמודה1]],הסכמי_עודפים12[[#All],[עמודה2]],(120- SUM(קולות11[מנדטים בסיסי])),MATCH(קולות11[[#This Row],[מפלגה]],קולות11[מפלגה],0)))","v":0},null,{"$f":"Goshim(טבלה313[ימין],קולות11[מפלגה],קולות11[מנדטים הסכם עודפים])","v":120},{"$f":"Goshim(טבלה313[שמאל],קולות11[מפלגה],קולות11[מנדטים הסכם עודפים])","v":0}]